{"text_format":"1","workbook":"xlsx","n_sheets":74,"sheets":["modList03","modProv","Инструкция","Лог обновления","Титульный","СВОД","ПР-ВО","et_union","ПРОЧ.ТЕХ","СБРОС","ПРОМЫВ","ДЕЗИНФ","ХОЗ-БЫТ_ДО","ПОТЕРИ_ЕСТ","ПОТЕРИ_РЧВ","ПОТЕРИ_ТР","нормы","СКР_УТЕЧ","ТРАНСП","ПРОМЫВ_СЕТЬ","ДЕЗИНФ_СЕТЬ","ЧИСТ_РЕЗ","СБРОС_ТРУБ","ПРОБА_ТРУБ","ПОЖАР","ХОЗ-БЫТ_ПОСЛЕ","СВИЩ","ТРЕЩ","РАЗРЫВ","ПОТЕРИ_ТРАНСП","ПОТЕРИ_РЧВ_ТР","Комментарии","Проверка","TEHSHEET","modCheckCyan","modProvGeneralProc","modReestr","AllSheetsInThisWorkbook","modHTTP","modIHLCommandBar","modInstruction","modfrmURL","modfrmRegion","modfrmSecretCode","modfrmCheckUpdates","modClassifierValidate","REESTR_MO","REESTR_ORG","modfrmReestr","modHyp","modUpdTemplMain","modfrmListObject","modThisWorkbook","modList00","modList02","modList04","modList07","modList09","modList10","modList13","modList15","modList17","modList16","modList18","modList19","modList20","modList21","modList22","modList23","modList24","modList05","modList06","modList12","modCommonProc"],"not_rendered":{"charts":0,"images":22,"macros":1,"external_links":1,"defined_names":161,"comments":10,"pivot_tables":0},"unopened":[],"bounds":{"document_bytes":16777216,"sheet_cells":100000,"rows_first":2000,"rows_last":500,"rows_between":2000,"halvings":0,"cell_chars":16384,"cell_head_chars":4096},"cells_cut":0,"cells_raw":0,"read":"whole","date_system":"1900"}

{"sheet":"modList03","index":0,"n_rows":0,"n_cols":0,"rows_kept":0,"cut":false,"hidden":true,"merged":[]}

{"sheet":"modProv","index":1,"n_rows":0,"n_cols":0,"rows_kept":0,"cut":false,"hidden":true,"merged":[]}

{"sheet":"Инструкция","index":2,"n_rows":97,"n_cols":27,"rows_kept":97,"cut":false,"hidden":false,"merged":[[45,4,56,23],[1,1,1,6],[2,1,2,2],[4,1,4,24],[6,4,12,23],[13,4,18,23],[20,5,20,12],[20,15,20,23],[21,5,21,12],[21,15,21,23],[34,4,38,23],[39,4,39,23],[40,4,44,23],[58,4,58,23],[59,4,59,23],[60,4,60,23],[70,4,70,23],[75,4,75,6],[75,7,75,23],[96,5,96,23],[76,4,76,23],[77,4,77,9],[77,10,77,23],[78,7,78,23],[92,4,92,23],[94,5,94,18]]}
[null,null,null,null,null,null,null,null,null,null,null,null,null,null,null,null,null,null,null,null,null,null,null,null,null,null," (требуется обновление)"]
[null,{"$f":"\"Код шаблона: \" & GetCode()","v":"Код шаблона: WATER.LOSS"}]
[null,{"$f":"\"Версия \" & Getversion()","v":"Версия 1.0"}]
[]
[null,{"$f":"Титульный!E5","v":"Расчёт расходов и потерь при производстве и транспортировке горячей, питьевой и технической воды"}]
[]
[null,null,null,null,"• На рабочем месте должен быть установлен 2007 SP3, 2010, 2013, 2016 с полной версией MS Excel\n\n• Макросы во время работы должны быть включены (!)\n\n• Для корректной работы отчёта требуется выбрать низкий уровень безопасности\n(В меню MS Excel 2007/2010/2013/2016: Параметры Excel | Центр управления безопасностью | Параметры центра управления безопасностью | Параметры макросов | Включить все макросы | ОК)\n\n"]
[]
[]
[]
[]
[]
[]
[null,null,null,null,"• Если Вы работаете в табличном процессоре MS Excel 2007 и выше, то можете использовать для работы формат XLSB (Двоичная книга Excel). При работе в формате XLSB заметно быстрее происходит сохранение файла, а также уменьшается размер по сравнению с форматами XLS и XLSM\n\n• Не рекомендуется снимать защиту с листов и каким-либо образом модифицировать защищаемые формулы и расчётные поля, в противном случае, отчёт будет отклонён системой\n\n• При сохранении не следует выбирать формат XLSX (Книга Excel), так как в указанном формате макросы, необходимые для работы отчёта, безвозвратно удаляются"]
[]
[]
[]
[]
[]
[]
[null,null,null,null,"A"," - предназначенные для заполнения",null,null,null,null,null,null,null,null,"A"," - ссылки и автозаполняемые поля"]
[null,null,null,null,"A"," - с формулами и константами",null,null,null,null,null,null,null,null,"A"," - обязательные для заполнения"]
[]
[]
[]
[]
[]
[]
[]
[]
[]
[]
[]
[]
[null,null,null,null,"Если в предложенном Вам списке необходимая организация, МР/МО отсутствуют, обновите реестры с помощью кнопок\n\nВ результате синхронизации с базой данных список организаций (МР/МО) будет заменён актуальным (механизм синхронизации требует подключения к сети Интернет и основан на использовании протокола HTTPS (TCP порт 443))\n\nЕсли после обновления Вам не удалось найти необходимую организацию в списке, обратитесь к ответственному за поддержание реестра Вашего региона. Информация о региональных органах регулирования доступна по ссылке:"]
[]
[]
[]
[]
[null,null,null,null,"http://www.fstrf.ru/regions/region/showlist"]
[]
[]
[]
[]
[]
[null,null,null,null,"• При сохранении отчёта осуществляется проверка корректности данных, в том числе на наличие значений в полях, обязательных для заполнения\n\n• Если значение не удовлетворяет условию проверки, на лист «Проверка» добавляется гиперссылка на данное поле и указывается причина ошибки\n\n• В колонке «Статус» для каждого сообщения возможны 2 значения: ошибка и предупреждение\n\n• При наличии сообщений со статусом «Ошибка» отчёт будет отклонён системой и не будет загружен в хранилище данных, сообщения со статусом «Предупреждение» носят информационный характер, и такой отчёт будет принят системой"]
[]
[]
[]
[]
[]
[]
[]
[]
[]
[]
[]
[]
[null,null,null,null,"Обратиться в службу поддержки"]
[null,null,null,null,"Инструкция по загрузке документов"]
[null,null,null,null,"База знаний"]
[]
[]
[]
[]
[]
[]
[]
[]
[]
[]
[]
[]
[]
[]
[]
[null,null,null,null,"Обратиться в службу поддержки"]
[]
[]
[]
[]
[]
[]
[]
[]
[]
[]
[]
[]
[]
[]
[]
[null,null,null,null,"При наличии подключения к Интернет, можно автоматически проверять наличие доступных обновлений. Выберите способ оповещения о наличии обновлений для отчёта:"]
[]
[null,null,null,null,null,"проверять доступные обновления (рекомендуется)",null,null,null,null,null,null,null,null,null,null,null,null,null,null,null,null,null,null,null,null,"y"]
[]
[null,null,null,null,null,"никогда не проверять наличие обновлений (не рекомендуется)"]

{"sheet":"Лог обновления","index":3,"n_rows":7,"n_cols":3,"rows_kept":7,"cut":false,"hidden":true,"merged":[]}
["Дата/Время","Сообщение","Статус"]
["3/26/2021  5:15:51 PM","Проверка доступных обновлений...","Информация"]
["3/26/2021  5:15:52 PM","Нет доступных обновлений для отчёта с кодом WATER.LOSS!","Информация"]
["3/26/2021  5:16:02 PM","Проверка доступных обновлений...","Информация"]
["3/26/2021  5:16:03 PM","Нет доступных обновлений для отчёта с кодом WATER.LOSS!","Информация"]
["3/29/2021  4:55:42 PM","Проверка доступных обновлений...","Информация"]
["3/29/2021  4:55:43 PM","Нет доступных обновлений для отчёта с кодом WATER.LOSS!","Информация"]

{"sheet":"Титульный","index":4,"n_rows":42,"n_cols":6,"rows_kept":42,"cut":false,"hidden":false,"merged":[[4,4,4,5]]}
[]
[]
[]
[]
[null,null,null,null,"Расчёт расходов и потерь при производстве и транспортировке горячей, питьевой и технической воды"]
[]
[null,null,null,null,"Субъект РФ","Ленинградская область"]
[null,null,null,null,"Версия","Версия организации"]
[null,null,null,null,"Период регулирования"]
[]
[null,null,null,null,"Филиал"]
[]
[null,null,null,null,"Наименование организации"]
[null,null,null,null,"Наименование подразделения",""]
[null,null,null,null,"ИНН"]
[null,null,null,null,"КПП"]
[]
[null,null,null,null,"Является ли организация плательщиком НДС в базовом периоде"]
[]
[null,null,null,null,"Будет ли организация являться плательщиком НДС в регулируемом периоде"]
[]
[null,null,null,null," Число жителей, которым оказываются услуги"]
[]
[null,null,null,null,"Наименование регулируемого тарифа"]
[]
[null,null,null,null,"Муниципальный район"]
[null,null,null,null,"Муниципальное образование"]
[null,null,null,null,"ОКТМО"]
[null,null,null,null,null,"Адрес организации"]
[null,null,null,null,"Юридический адрес"]
[null,null,null,null,"Почтовый адрес"]
[null,null,null,null,null,"Руководитель"]
[null,null,null,null,"Фамилия, имя, отчество"]
[null,null,null,null,"Контактный телефон"]
[null,null,null,null,null,"Главный бухгалтер"]
[null,null,null,null,"Фамилия, имя, отчество"]
[null,null,null,null,"Контактный телефон"]
[null,null,null,null,null,"Должностное лицо, ответственное за составление формы"]
[null,null,null,null,"Фамилия, имя, отчество"]
[null,null,null,null,"Должность"]
[null,null,null,null,"Контактный телефон"]
[null,null,null,null,"e-mail"]

{"sheet":"СВОД","index":5,"n_rows":23,"n_cols":12,"rows_kept":23,"cut":false,"hidden":false,"merged":[[5,3,6,3],[5,4,6,4],[5,5,6,5],[0,3,0,11],[3,3,3,11]]}
[]
[]
[]
[null,null,null,"Расчет расходов и потерь при производстве и транспортировке горячей, питьевой и технической воды (свод)"]
[]
[null,null,null,"№","Показатели","Ед. изм.","Факт","Факт","Ожидаемый факт","План ОКК","Доля","План регулятора"]
[null,null,null,null,null,null,{"$f":"god-3","v":-3},{"$f":"god-2","v":-2},{"$f":"god-1","v":-1},{"$f":"god","v":0},null,{"$f":"god","v":0}]
[]
[null,null,null,1,"Подано воды в сеть","тыс.м3"]
[null,null,null,2,"На производство","тыс.м3",{"$f":"G11+G12","v":0},0,0,0,0,0]
[null,null,null,"2.1","РАСХОДЫ ВОДЫ","тыс.м3",{"$f":"'ПР-ВО'!K9/1000","v":0},{"$f":"'ПР-ВО'!L9/1000","v":0},{"$f":"'ПР-ВО'!M9/1000","v":0},{"$f":"'ПР-ВО'!O9/1000","v":0},{"$f":"'ПР-ВО'!P9/1000","v":0},{"$f":"'ПР-ВО'!Q9/1000","v":0}]
[null,null,null,"2.2","ПОТЕРИ ВОДЫ","тыс.м3",{"$f":"'ПР-ВО'!K48/1000","v":0},{"$f":"'ПР-ВО'!L48/1000","v":0},{"$f":"'ПР-ВО'!M48/1000","v":0},{"$f":"'ПР-ВО'!O48/1000","v":0},{"$f":"'ПР-ВО'!P48/1000","v":0},{"$f":"'ПР-ВО'!Q48/1000","v":0}]
[null,null,null,3,"На транспортировку","тыс.м3",{"$f":"G14+G15","v":0},0,0,0,0,0]
[null,null,null,"3.1","РАСХОДЫ ВОДЫ","тыс.м3",{"$f":"ТРАНСП!G9/1000","v":0},{"$f":"ТРАНСП!H9/1000","v":0},{"$f":"ТРАНСП!I9/1000","v":0},{"$f":"ТРАНСП!K9/1000","v":0},{"$f":"ТРАНСП!L9/1000","v":0},{"$f":"ТРАНСП!M9/1000","v":0}]
[null,null,null,"3.2","ПОТЕРИ ВОДЫ","тыс.м3",{"$f":"ТРАНСП!G28/1000","v":0},{"$f":"ТРАНСП!H28/1000","v":0},{"$f":"ТРАНСП!I28/1000","v":0},{"$f":"ТРАНСП!K28/1000","v":0},{"$f":"ТРАНСП!L28/1000","v":0},{"$f":"ТРАНСП!M28/1000","v":0}]
[]
[null,null,null,"4","ИТОГО РАСХОДОВ","тыс.м3",{"$f":"G11+G14","v":0},0,0,0,0,0]
[null,null,null,"5","ИТОГО РАСХОДОВ (к поданной воде в сеть)","%",{"$f":"IF(G9=0,,G17/G9)","v":0},0,0,0,0,0]
[null,null,null,"6","ИТОГО ПОТЕРЬ","тыс.м3",{"$f":"G12+G15","v":0},0,0,0,0,0]
[null,null,null,"7","ИТОГО ПОТЕРЬ (к поданной воде в сеть)","%",{"$f":"IF(G9=0,,G19/G9)","v":0},0,0,0,0,0]
[]
[null,null,null,"8","Потери и расходы всего","тыс.м3",{"$f":"G17+G19","v":0},0,0,0,0,0]
[null,null,null,"9","Потери и расходы всего","%",{"$f":"IF(G9=0,,G22/G9)","v":0},0,0,0,0,0]

{"sheet":"ПР-ВО","index":6,"n_rows":55,"n_cols":17,"rows_kept":55,"cut":false,"hidden":false,"merged":[[3,7,3,16],[5,7,6,7],[5,8,6,8],[5,9,6,9],[5,13,6,13],[5,15,6,15]]}
[]
[]
[]
[null,null,null,null,null,null,null,"Расчет расходов и потерь при производстве горячей, питьевой и технической воды"]
[null,null,null,null,null,null,null,null,null,null,null,null,null,null,null,null,"Приложение 2"]
[null,null,null,null,null,null,null,"№","Показатели","Ед. изм.","Факт","Факт","Ожидаемый факт","Доля","План ОКК","Доля","План регулятора"]
[null,null,null,null,null,null,null,null,null,null,{"$f":"god-3","v":-3},{"$f":"god-2","v":-2},{"$f":"god-1","v":-1},null,{"$f":"god","v":0},null,{"$f":"god","v":0}]
[]
[null,null,null,null,null,null,null,"1","РАСХОДЫ ВОДЫ","м3",{"$f":"K10+K46+K47","v":0},{"$f":"L10+L46+L47","v":0},{"$f":"M10+M46+M47","v":0},{"$f":"IF($O$9=0,,O9/$O$9)","v":0},{"$f":"O10+O46+O47","v":0},{"$f":"IF($Q$9=0,,Q9/$Q$9)","v":0},{"$f":"Q10+Q46+Q47","v":0}]
[null,null,null,null,null,null,null,"1.1","Технологические расходы","м3",{"$f":"K11+K45","v":0},{"$f":"L11+L45","v":0},{"$f":"M11+M45","v":0},{"$f":"IF($O$9=0,,O10/$O$9)","v":0},{"$f":"O11+O45","v":0},{"$f":"IF($Q$9=0,,Q10/$Q$9)","v":0},{"$f":"Q11+Q45","v":0}]
[null,null,null,null,null,null,null,"1.1.1","Расходы на промывку технологических сооружений:","м3",{"$f":"K12+K20+K29+K42+K44","v":0},{"$f":"L12+L20+L29+L42+L44","v":0},{"$f":"M12+M20+M29+M42+M44","v":0},{"$f":"IF($O$9=0,,O11/$O$9)","v":0},{"$f":"O12+O20+O29+O42+O44","v":0},{"$f":"IF($Q$9=0,,Q11/$Q$9)","v":0},{"$f":"Q12+Q20+Q29+Q42+Q44","v":0}]
[null,null,null,null,null,null,null,"1.1.1.1","на промывку смесителей и камер реакции","м3",{"$f":"K13+K16","v":0},{"$f":"L13+L16","v":0},{"$f":"M13+M16","v":0},{"$f":"IF($O$9=0,,O12/$O$9)","v":0},{"$f":"O13+O16","v":0},{"$f":"IF($Q$9=0,,Q12/$Q$9)","v":0},{"$f":"Q13+Q16","v":0}]
[null,null,null,null,null,null,null,"1.1.1.1.1","количество воды, сбрасываемой перед промывкой","м3",{"$f":"SUMIF($J14:$J15,\"м3\",K14:K15)","v":0},{"$f":"SUMIF($J14:$J15,\"м3\",L14:L15)","v":0},{"$f":"SUMIF($J14:$J15,\"м3\",M14:M15)","v":0},{"$f":"IF($O$9=0,,O13/$O$9)","v":0},{"$f":"SUMIF($J14:$J15,\"м3\",O14:O15)","v":0},{"$f":"IF($Q$9=0,,Q13/$Q$9)","v":0},{"$f":"SUMIF($J14:$J15,\"м3\",Q14:Q15)","v":0}]
[null,null,null,null,null,0]
[null,null,null,null,null,null,null,null,"Добавить строки",1]
[null,null,null,null,null,null,null,"1.1.1.1.2","расход воды на промывку","м3",{"$f":"K17*K18*K19","v":0},0,0,{"$f":"IF($O$9=0,,O16/$O$9)","v":0},0,{"$f":"IF($Q$9=0,,Q16/$Q$9)","v":0},0]
[null,null,null,null,null,null,null,"1.1.1.1.2.1","расход воды на 1 брандспойт","м3/час"]
[null,null,null,null,null,null,null,"1.1.1.1.2.2","количество брандспойтов","шт."]
[null,null,null,null,null,null,null,"1.1.1.1.2.3","время промывки","час"]
[null,null,null,null,null,null,null,"1.1.1.2","на промывку отстойников","м3",{"$f":"K21+K22+K25","v":0},{"$f":"L21+L22+L25","v":0},{"$f":"M21+M22+M25","v":0},{"$f":"IF($O$9=0,,O20/$O$9)","v":0},{"$f":"O21+O22+O25","v":0},{"$f":"IF($Q$9=0,,Q20/$Q$9)","v":0},{"$f":"Q21+Q22+Q25","v":0}]
[null,null,null,null,null,null,null,"1.1.1.2.1","количество воды, сбрасываемой через систему непрерывного удаления осадка","м3",null,null,null,{"$f":"IF($O$9=0,,O21/$O$9)","v":0},null,{"$f":"IF($Q$9=0,,Q21/$Q$9)","v":0}]
[null,null,null,null,null,null,null,"1.1.1.2.2","количество воды, сбрасываемой перед промывкой","м3",{"$f":"SUM(K23:K24)","v":0},{"$f":"SUM(L23:L24)","v":0},{"$f":"SUM(M23:M24)","v":0},{"$f":"IF($O$9=0,,O22/$O$9)","v":0},{"$f":"SUM(O23:O24)","v":0},{"$f":"IF($Q$9=0,,Q22/$Q$9)","v":0},{"$f":"SUM(Q23:Q24)","v":0}]
[null,null,null,null,null,0]
[null,null,null,null,null,null,null,null,"Добавить строки",2]
[null,null,null,null,null,null,null,"1.1.1.2.3","расход воды на промывку","м3",{"$f":"K26*K27*K28","v":0},0,0,{"$f":"IF($O$9=0,,O25/$O$9)","v":0},0,{"$f":"IF($Q$9=0,,Q25/$Q$9)","v":0},0]
[null,null,null,null,null,null,null,"1.1.1.2.3.1","расход воды на 1 брандспойт","м3/час"]
[null,null,null,null,null,null,null,"1.1.1.2.3.2","количество брандспойтов","шт."]
[null,null,null,null,null,null,null,"1.1.1.2.3.3","время промывки","час"]
[null,null,null,null,null,null,null,"1.1.1.3","на промывку фильтров","м3",{"$f":"K30+K33+K36+K39","v":0},{"$f":"L30+L33+L36+L39","v":0},{"$f":"M30+M33+M36+M39","v":0},{"$f":"IF($O$9=0,,O29/$O$9)","v":0},{"$f":"O30+O33+O36+O39","v":0},{"$f":"IF($Q$9=0,,Q29/$Q$9)","v":0},{"$f":"Q30+Q33+Q36+Q39","v":0}]
[null,null,null,null,null,null,null,"1.1.1.3.1","количество воды, сбрасываемой перед промывкой","м3",{"$f":"SUMIF($J31:$J32,\"м3\",K31:K32)","v":0},{"$f":"SUMIF($J31:$J32,\"м3\",L31:L32)","v":0},{"$f":"SUMIF($J31:$J32,\"м3\",M31:M32)","v":0},{"$f":"IF($O$9=0,,O30/$O$9)","v":0},{"$f":"SUMIF($J31:$J32,\"м3\",O31:O32)","v":0},{"$f":"IF($Q$9=0,,Q30/$Q$9)","v":0},{"$f":"SUMIF($J31:$J32,\"м3\",Q31:Q32)","v":0}]
[null,null,null,null,null,0]
[null,null,null,null,null,null,null,null,"Добавить строки",3]
[null,null,null,null,null,null,null,"1.1.1.3.2","расход воды на промывку","м3",{"$f":"SUMIF($J34:$J35,\"м3\",K34:K35)","v":0},{"$f":"SUMIF($J34:$J35,\"м3\",L34:L35)","v":0},{"$f":"SUMIF($J34:$J35,\"м3\",M34:M35)","v":0},{"$f":"IF($O$9=0,,O33/$O$9)","v":0},{"$f":"SUMIF($J34:$J35,\"м3\",O34:O35)","v":0},{"$f":"IF($Q$9=0,,Q33/$Q$9)","v":0},{"$f":"SUMIF($J34:$J35,\"м3\",Q34:Q35)","v":0}]
[null,null,null,null,null,0]
[null,null,null,null,null,null,null,null,"Добавить строки",4]
[null,null,null,null,null,null,null,"1.1.1.3.3","сброс первой порции фильтрата","м3",{"$f":"SUMIF($J37:$J38,\"м3\",K37:K38)","v":0},{"$f":"SUMIF($J37:$J38,\"м3\",L37:L38)","v":0},{"$f":"SUMIF($J37:$J38,\"м3\",M37:M38)","v":0},{"$f":"IF($O$9=0,,O36/$O$9)","v":0},{"$f":"SUMIF($J37:$J38,\"м3\",O37:O38)","v":0},{"$f":"IF($Q$9=0,,Q36/$Q$9)","v":0},{"$f":"SUMIF($J37:$J38,\"м3\",Q37:Q38)","v":0}]
[null,null,null,null,null,0]
[null,null,null,null,null,null,null,null,"Добавить строки",5]
[null,null,null,null,null,null,null,"1.1.1.3.4","расход на дезинфекцию","м3.",{"$f":"SUMIF($J40:$J41,\"м3.\",K40:K41)","v":0},{"$f":"SUMIF($J40:$J41,\"м3.\",L40:L41)","v":0},{"$f":"SUMIF($J40:$J41,\"м3.\",M40:M41)","v":0},{"$f":"IF($O$9=0,,O39/$O$9)","v":0},{"$f":"SUMIF($J40:$J41,\"м3.\",O40:O41)","v":0},{"$f":"IF($Q$9=0,,Q39/$Q$9)","v":0},{"$f":"SUMIF($J40:$J41,\"м3.\",Q40:Q41)","v":0}]
[null,null,null,null,null,0]
[null,null,null,null,null,null,null,null,"Добавить строки",6]
[null,null,null,null,null,null,null,"1.1.1.4","на промывку РЧВ (резервуаров чистой воды)","м3",{"$f":"2*K43","v":0},0,0,{"$f":"IF($O$9=0,,O42/$O$9)","v":0},0,{"$f":"IF($Q$9=0,,Q42/$Q$9)","v":0},0]
[null,null,null,null,null,null,null,"1.1.1.4.1","объем РЧВ","м3"]
[null,null,null,null,null,null,null,"1.1.1.5","на промывку сооружений реагентного хозяйства","м3",null,null,null,{"$f":"IF($O$9=0,,O44/$O$9)","v":0},null,{"$f":"IF($Q$9=0,,Q44/$Q$9)","v":0}]
[null,null,null,null,null,null,null,"1.1.2","Прочие технологические расходы","м3",{"$f":"ПРОЧ.ТЕХ!G9","v":0},{"$f":"ПРОЧ.ТЕХ!H9","v":0},{"$f":"ПРОЧ.ТЕХ!I9","v":0},{"$f":"IF($O$9=0,,O45/$O$9)","v":0},{"$f":"ПРОЧ.ТЕХ!J9","v":0},{"$f":"IF($Q$9=0,,Q45/$Q$9)","v":0},{"$f":"ПРОЧ.ТЕХ!K9","v":0}]
[null,null,null,null,null,null,null,"1.2","Расходы на хозяйственно-бытовые нужды","м3",{"$f":"'ХОЗ-БЫТ_ДО'!H9","v":0},{"$f":"'ХОЗ-БЫТ_ДО'!I9","v":0},{"$f":"'ХОЗ-БЫТ_ДО'!J9","v":0},{"$f":"IF($O$9=0,,O46/$O$9)","v":0},{"$f":"'ХОЗ-БЫТ_ДО'!K9","v":0},{"$f":"IF($Q$9=0,,Q46/$Q$9)","v":0},{"$f":"'ХОЗ-БЫТ_ДО'!L9","v":0}]
[null,null,null,null,null,null,null,"1.3","Организационно-учетные расходы","м3",null,null,null,{"$f":"IF($O$9=0,,O47/$O$9)","v":0},null,{"$f":"IF($Q$9=0,,Q47/$Q$9)","v":0}]
[null,null,null,null,null,null,null,"2","ПОТЕРИ ВОДЫ",null,{"$f":"K49+K50+K55","v":0},{"$f":"L49+L50+L55","v":0},{"$f":"M49+M50+M55","v":0},{"$f":"IF($O$48=0,,O48/$O$48)","v":0},{"$f":"O49+O50+O55","v":0},{"$f":"IF($Q$48=0,,Q48/$Q$48)","v":0},{"$f":"Q49+Q50+Q55","v":0}]
[null,null,null,null,null,null,null,"2.1","В водопроводных сооружениях","м3",{"$f":"ПОТЕРИ_ЕСТ!G9","v":0},{"$f":"ПОТЕРИ_ЕСТ!H9","v":0},{"$f":"ПОТЕРИ_ЕСТ!I9","v":0},{"$f":"IF($O$48=0,,O49/$O$48)","v":0},{"$f":"ПОТЕРИ_ЕСТ!J9","v":0},{"$f":"IF($Q$48=0,,Q49/$Q$48)","v":0},{"$f":"ПОТЕРИ_ЕСТ!K9","v":0}]
[null,null,null,null,null,null,null,"2.2","Утечки через уплотнения запорной арматуры на технологических трубопроводах","м3",{"$f":"K51*K52*K53*K54","v":0},0,0,0,0,0,0]
[null,null,null,null,null,null,null,"2.2.1","доля арматуры, имеющей утечки","в долях единицы"]
[null,null,null,null,null,null,null,"2.2.2","общее количество запорной арматуры","ед"]
[null,null,null,null,null,null,null,"2.2.3","средний расход при утечке через уплотнения запорной арматуры","м3/сутки"]
[null,null,null,null,null,null,null,"2.2.4","календарное число суток за расчетный период","суток"]
[null,null,null,null,null,null,null,"2.3","Скрытые утечки из РЧВ сверх норм естественной убыли воды","м3",{"$f":"СКР_УТЕЧ!H9","v":0},{"$f":"СКР_УТЕЧ!I9","v":0},{"$f":"СКР_УТЕЧ!J9","v":0},0,{"$f":"СКР_УТЕЧ!K9","v":0},0,{"$f":"СКР_УТЕЧ!L9","v":0}]

{"sheet":"et_union","index":7,"n_rows":162,"n_cols":17,"rows_kept":162,"cut":false,"hidden":true,"merged":[[43,3,45,3],[43,4,45,4],[47,3,50,3],[47,4,50,4],[53,3,55,3],[53,4,55,4],[58,3,61,3],[58,4,61,4],[64,3,66,3],[64,4,66,4],[69,3,73,3],[69,4,73,4],[97,3,101,3],[97,4,101,4],[104,3,110,3],[104,4,110,4],[76,3,79,3],[76,4,79,4],[82,3,86,3],[82,4,86,4],[89,3,94,3],[89,4,94,4],[113,3,115,3],[113,4,115,4],[118,3,122,3],[118,4,122,4],[125,3,128,3],[125,4,128,4],[152,3,156,3],[152,4,156,4],[159,3,161,3],[159,4,161,4],[131,3,135,3],[131,4,135,4],[138,3,142,3],[138,4,142,4],[145,3,149,3],[145,4,149,4],[3,5,5,5],[11,5,13,5],[16,5,19,5],[22,5,25,5],[27,5,38,5],[3,6,5,6],[11,6,13,6],[16,6,19,6],[22,6,25,6],[27,6,38,6],[43,2,45,2],[58,2,61,2],[64,2,66,2],[69,2,73,2],[82,2,86,2],[97,2,101,2],[104,2,110,2],[113,2,115,2],[118,2,122,2],[125,2,128,2],[131,2,135,2],[138,2,142,2],[145,2,149,2],[152,2,156,2],[159,2,161,2]]}
[]
[]
["et_List02_1"]
[null,null,null,null,null,1,null,{"$f":"\"1.1.1.1.1.\"&F4","v":"1.1.1.1.1.1"},null,"м3",{"$f":"K5*K6","v":0},{"$f":"L5*L6","v":0},{"$f":"M5*M6","v":0},null,{"$f":"O5*O6","v":0},null,{"$f":"Q5*Q6","v":0}]
[null,null,null,null,null,null,null,{"$f":"H4&\".1\"","v":"1.1.1.1.1.1.1"},"площадь сооружения","м2"]
[null,null,null,null,null,null,null,{"$f":"H4&\".2\"","v":"1.1.1.1.1.1.2"},"уровень (высота слоя) сбрасываемой перед промывкой воды","м"]
["et_List02_2"]
[]
[null,null,null,null,null,1,null,{"$f":"\"1.1.1.2.2.\"&F9","v":"1.1.1.2.2.1"},null,"м3"]
[]
["et_List02_3"]
[null,null,null,null,null,1,null,{"$f":"\"1.1.1.3.1.\"&F12","v":"1.1.1.3.1.1"},null,"м3",{"$f":"K13*K14","v":0},{"$f":"L13*L14","v":0},0,null,0,null,0]
[null,null,null,null,null,null,null,{"$f":"H12&\".1\"","v":"1.1.1.3.1.1.1"},"площадь фильтра","м2"]
[null,null,null,null,null,null,null,{"$f":"H12&\".2\"","v":"1.1.1.3.1.1.2"},"уровень (высота слоя) сбрасываемой воды","м"]
[]
["et_List02_4"]
[null,null,null,null,null,1,null,{"$f":"\"1.1.1.3.2.\"&F17","v":"1.1.1.3.2.1"},null,"м3",{"$f":"0.06*K18*K19*K20","v":0},{"$f":"0.06*L18*L19*L20","v":0},0,null,0,null,0]
[null,null,null,null,null,null,null,{"$f":"H17&\".1\"","v":"1.1.1.3.2.1.1"},"площадь фильтра","м2"]
[null,null,null,null,null,null,null,{"$f":"H17&\".2\"","v":"1.1.1.3.2.1.2"},"интенсивность промывки","л/(сек*м2)"]
[null,null,null,null,null,null,null,{"$f":"H17&\".3\"","v":"1.1.1.3.2.1.3"},"время промывки","мин"]
[]
["et_List02_5"]
[null,null,null,null,null,1,null,{"$f":"\"1.1.1.3.3.\"&F23","v":"1.1.1.3.3.1"},null,"м3",{"$f":"K24*K25*K26","v":0},{"$f":"L24*L25*L26","v":0},0,null,0,null,0]
[null,null,null,null,null,null,null,{"$f":"H23&\".1\"","v":"1.1.1.3.3.1.1"},"площадь фильтра","м2"]
[null,null,null,null,null,null,null,{"$f":"H23&\".2\"","v":"1.1.1.3.3.1.2"},"скорость фильтрации","м/час"]
[null,null,null,null,null,null,null,{"$f":"H23&\".3\"","v":"1.1.1.3.3.1.3"},"время сброса","час",0.5,0.5,0.5,null,0.5,null,0.5]
["et_List02_6"]
[null,null,null,null,null,1,null,{"$f":"\"1.1.1.3.4.\"&F28","v":"1.1.1.3.4.1"},null,"м3.",{"$f":"(K30+K33+K36)*K29","v":0},{"$f":"(L30+L33+L36)*L29","v":0},0,null,0,null,0]
[null,null,null,null,null,null,null,{"$f":"H28&\".1\"","v":"1.1.1.3.4.1.1"},"количество дезинфекций","ед."]
[null,null,null,null,null,null,null,{"$f":"H28&\".2\"","v":"1.1.1.3.4.1.2"},"количество воды, сбрасываемой перед дезинфекцией","м3",{"$f":"K31*K32","v":0},0,0,null,0,null,0]
[null,null,null,null,null,null,null,{"$f":"H28&\".3\"","v":"1.1.1.3.4.1.3"},"площадь фильтра","м2"]
[null,null,null,null,null,null,null,{"$f":"H28&\".4\"","v":"1.1.1.3.4.1.4"},"уровень (высота слоя) сбрасываемой воды","м"]
[null,null,null,null,null,null,null,{"$f":"H28&\".5\"","v":"1.1.1.3.4.1.5"},"количество воды, сбрасываемой после дезинфекции","м3",{"$f":"K34*K35","v":0},0,0,null,0,null,0]
[null,null,null,null,null,null,null,{"$f":"H28&\".6\"","v":"1.1.1.3.4.1.6"},"площадь фильтра","м2"]
[null,null,null,null,null,null,null,{"$f":"H28&\".7\"","v":"1.1.1.3.4.1.7"},"уровень (высота слоя) сбрасываемой воды","м"]
[null,null,null,null,null,null,null,{"$f":"H28&\".8\"","v":"1.1.1.3.4.1.8"},"количество воды на промывку после дезинфекции","м3",{"$f":"0.06*K37*K38*K39","v":0},0,0,null,0,null,0]
[null,null,null,null,null,null,null,{"$f":"H28&\".9\"","v":"1.1.1.3.4.1.9"},"площадь фильтра","м2"]
[null,null,null,null,null,null,null,{"$f":"H28&\".10\"","v":"1.1.1.3.4.1.10"},"интенсивность промывки","л/(сек*м2)"]
[null,null,null,null,null,null,null,{"$f":"H28&\".11\"","v":"1.1.1.3.4.1.11"},"время промывки","мин"]
[]
[]
[]
["et_List04"]
[null,null,null,null,null,"i-ое выражение для формулы",null,{"$f":"H45^2*H46","v":0},{"$f":"I45^2*I46","v":0},{"$f":"J45^2*J46","v":0},{"$f":"K45^2*K46","v":0},{"$f":"L45^2*L46","v":0}]
[null,null,null,null,null,"диаметр опорожняемого участка","м"]
[null,null,null,null,null,"длина опорожняемого участка","м"]
["et_List05"]
[null,null,null,null,null,"i-ое выражение для формулы",null,{"$f":"H49^2*H50*H51","v":0},{"$f":"I49^2*I50*I51","v":0},{"$f":"J49^2*J50*J51","v":0},{"$f":"K49^2*K50*K51","v":0},{"$f":"L49^2*L50*L51","v":0}]
[null,null,null,null,null,"диаметр промываемого участка","м"]
[null,null,null,null,null,"скорость при промывке участка","м/с"]
[null,null,null,null,null,"продолжительность промывки участка","час"]
[]
["et_List06"]
[null,null,null,null,null,"i-ое выражение для формулы",null,{"$f":"H55^2*H56*H$11","v":0},{"$f":"I55^2*I56*I$11","v":0},{"$f":"J55^2*J56*J$11","v":0},{"$f":"K55^2*K56*K$11","v":0},{"$f":"L55^2*L56*L$11","v":0}]
[null,null,null,null,null,"диаметр промываемого участка","м"]
[null,null,null,null,null,"протяженность промываемого участка","м"]
[]
["et_List07"]
[null,null,null,null,null,"расход по оборудованию","м3",{"$f":"H60*H61*H62/1000","v":0},{"$f":"I60*I61*I62/1000","v":0},{"$f":"J60*J61*J62/1000","v":0},{"$f":"K60*K61*K62/1000","v":0},{"$f":"L60*L61*L62/1000","v":0}]
[null,null,null,null,null,"количество установленного сантехнического оборудования","ед"]
[null,null,null,null,null,"удельный средний расход воды на единицу сантехнического оборудования","л/час"]
[null,null,null,null,null,"годовой фонд времени работы сантехнического оборудования","час"]
[]
["et_List09"]
[null,null,null,null,null,"потери воды за счет естественной убыли в РЧВ","кг",{"$f":"0.125*H66*H67","v":0},{"$f":"0.125*I66*I67","v":0},{"$f":"0.125*J66*J67","v":0},{"$f":"0.125*K66*K67","v":0},{"$f":"0.125*L66*L67","v":0}]
[null,null,null,null,null,"среднегодовой размер площади смоченной поверхности РЧВ","м2"]
[null,null,null,null,null,"годовое время работы РЧВ","час"]
[]
["et_List10"]
[null,null,null,null,null,"произведение протяженности и нормы",null,{"$f":"H71*H72","v":0},{"$f":"I71*I72","v":0},{"$f":"J71*J72","v":0},{"$f":"K71*K72","v":0},{"$f":"L71*L72","v":0}]
[null,null,null,null,null,"протяженность участка трубопровода одного диаметра и материала","км"]
[null,null,null,null,null,"норма естественной убыли","кг/(км*ч)",{"$f":"IFERROR(VLOOKUP(H73,нормы!$B$31:$F$55,IF(H74=нормы!$C$30,2,IF(H74=нормы!$D$30,3,IF(H74=нормы!$E$30,4,IF(H74=нормы!$F$30,5)))),FALSE),0)","v":0},{"$f":"IFERROR(VLOOKUP(I73,нормы!$B$31:$F$55,IF(I74=нормы!$C$30,2,IF(I74=нормы!$D$30,3,IF(I74=нормы!$E$30,4,IF(I74=нормы!$F$30,5)))),FALSE),0)","v":0},{"$f":"IFERROR(VLOOKUP(J73,нормы!$B$31:$F$55,IF(J74=нормы!$C$30,2,IF(J74=нормы!$D$30,3,IF(J74=нормы!$E$30,4,IF(J74=нормы!$F$30,5)))),FALSE),0)","v":0},{"$f":"IFERROR(VLOOKUP(K73,нормы!$B$31:$F$55,IF(K74=нормы!$C$30,2,IF(K74=нормы!$D$30,3,IF(K74=нормы!$E$30,4,IF(K74=нормы!$F$30,5)))),FALSE),0)","v":0},{"$f":"IFERROR(VLOOKUP(L73,нормы!$B$31:$F$55,IF(L74=нормы!$C$30,2,IF(L74=нормы!$D$30,3,IF(L74=нормы!$E$30,4,IF(L74=нормы!$F$30,5)))),FALSE),0)","v":0}]
[null,null,null,null,null,"внутренний диаметр трубопровода","мм"]
[null,null,null,null,null,"тип трубы"]
[]
["et_List11"]
[null,null,null,null,null,"произведение по утечке",null,{"$f":"H78*H79*H80","v":0},{"$f":"I78*I79*I80","v":0},{"$f":"J78*J79*J80","v":0},{"$f":"K78*K79*K80","v":0},{"$f":"L78*L79*L80","v":0}]
[null,null,null,null,null,"среднегодовое снижение уровня воды в РЧВ за 1 час","м/ч"]
[null,null,null,null,null,"годовой фонд времени работы РЧВ","час"]
[null,null,null,null,null,"площадь поверхности воды в РЧВ","м2"]
[]
["et_List13"]
[null,null,null,null,null," выражение для формулы",null,{"$f":"H84^2*H85*H86*H87","v":0},0,0,0,0,0,0]
[null,null,null,null,null,"диаметр промывочного устройства или водоспуска","м"]
[null,null,null,null,null,"скорость воды при промывке участка","м/с"]
[null,null,null,null,null,"продолжительность промывки участка","час"]
[null,null,null,null,null,"число промывочных устройств/водоспусков i-го типа","ед."]
[]
["et_List14"]
[null,null,null,null,null,"расчет",null,{"$f":"(1.57*H92^2*H94)+(3600*0.785*H91^2*H93*H95)","v":0},{"$f":"(1.57*I92^2*I94)+(3600*0.785*I91^2*I93*I95)","v":0},{"$f":"(1.57*J92^2*J94)+(3600*0.785*J91^2*J93*J95)","v":0},{"$f":"(1.57*K92^2*K94)+(3600*0.785*K91^2*K93*K95)","v":0},{"$f":"(1.57*L92^2*L94)+(3600*0.785*L91^2*L93*L95)","v":0}]
[null,null,null,null,null,"диаметр промывочного устройства","м"]
[null,null,null,null,null,"диаметр наполняемой трубы","м"]
[null,null,null,null,null,"продолжительность промывки","час"]
[null,null,null,null,null,"протяженность промываемого участка","м"]
[null,null,null,null,null,"скорость воды при промывке","м/сек"]
[]
["et_List17"]
[null,null,null,null,null,"i-ое выражение для формулы",null,{"$f":"H99^2*H100*H101*H102","v":0},{"$f":"I99^2*I100*I101*I102","v":0},{"$f":"J99^2*J100*J101*J102","v":0},{"$f":"K99^2*K100*K101*K102","v":0},{"$f":"L99^2*L100*L101*L102","v":0}]
[null,null,null,null,null,"диаметр водоспуска","м"]
[null,null,null,null,null,"скорость воды при пропуске перед пробоотбором","м/с"]
[null,null,null,null,null,"время пропуска воды перед пробоотбором","час"]
[null,null,null,null,null,"число отборов проб на водоспусках i-го диаметра","шт"]
[]
["et_List15"]
[null,null,null,null,null,"i-ый расчет",null,{"$f":"H106*H107+H108*H109*H110+H111","v":0},{"$f":"I106*I107+I108*I109*I110+I111","v":0},{"$f":"J106*J107+J108*J109*J110+J111","v":0},{"$f":"K106*K107+K108*K109*K110+K111","v":0},{"$f":"L106*L107+L108*L109*L110+L111","v":0}]
[null,null,null,null,null,"вместимость резервуара","м3"]
[null,null,null,null,null,"количество заполнений резервуара (не менее 2)","шт"]
[null,null,null,null,null,"расход воды на 1 брандспойт","м3/час"]
[null,null,null,null,null,"количество брандспойтов","шт"]
[null,null,null,null,null,"время промывки резервуара","час"]
[null,null,null,null,null,"объем воды, израсходованной на дезинфекцию резервуара: не более 1 заполнения","м3"]
[]
["et_List16"]
[null,null,null,null,null,"i-ое выражение для формулы",null,{"$f":"H115^2*H116","v":0},{"$f":"I115^2*I116","v":0},{"$f":"J115^2*J116","v":0},{"$f":"K115^2*K116","v":0},{"$f":"L115^2*L116","v":0}]
[null,null,null,null,null,"диаметр опорожняемого участка","м"]
[null,null,null,null,null,"длина опорожняемого участка","м"]
[]
["et_List18"]
[null,null,null,null,null,"произведение для формулы",null,{"$f":"H120*H121*H122*H123","v":0},{"$f":"I120*I121*I122*I123","v":0},{"$f":"J120*J121*J122*J123","v":0},{"$f":"K120*K121*K122*K123","v":0},{"$f":"L120*L121*L122*L123","v":0}]
[null,null,null,null,null,"расход воды на 1 пожарный рукав","л/сек",15,15,15,15,15]
[null,null,null,null,null,"продолжительность действия пожарного гидранта","час"]
[null,null,null,null,null,"количество задействованных пожарных рукавов","ед."]
[null,null,null,null,null,"число пожаров, на которых задействованы пожарные рукава данного типа","ед."]
[]
["et_List19"]
[null,null,null,null,null,"расход по i-му оборудованию","м3",{"$f":"(H127*H128*H129)/1000","v":0},{"$f":"(I127*I128*I129)/1000","v":0},{"$f":"(J127*J128*J129)/1000","v":0},{"$f":"(K127*K128*K129)/1000","v":0},{"$f":"(L127*L128*L129)/1000","v":0}]
[null,null,null,null,null,"количество установленного сантехнического оборудования","ед"]
[null,null,null,null,null,"удельный средний расход воды на единицу сантехнического оборудования","л/час"]
[null,null,null,null,null,"годовой фонд времени работы i-го сантехнического оборудования","час"]
[]
["et_List20"]
[null,null,null,null,null,"i-ое произведение для формулы",null,{"$f":"(H133^(1/2))*H135*H134","v":0},{"$f":"(I133^(1/2))*I135*I134","v":0},{"$f":"(J133^(1/2))*J135*J134","v":0},{"$f":"(K133^(1/2))*K135*K134","v":0},{"$f":"(L133^(1/2))*L135*L134","v":0}]
[null,null,null,null,null,"средняя величина напора воды в трубопроводе на поврежденном участке с типом свищевого повреждения","м2"]
[null,null,null,null,null,"продолжительность утечки с момента обнаружения до отключения поврежденного участка или заделки отверстия","час"]
[null,null,null,null,null,"число повреждений","ед"]
[null,null,null,null,null,"диаметр трубопровода на поврежденном участке","м"]
[]
["et_List21"]
[null,null,null,null,null,"i-ое произведение для формулы",null,{"$f":"(H140^(1/2))*(H143^2)*H142*H141","v":0},{"$f":"(I140^(1/2))*(I143^2)*I142*I141","v":0},{"$f":"(J140^(1/2))*(J143^2)*J142*J141","v":0},{"$f":"(K140^(1/2))*(K143^2)*K142*K141","v":0},{"$f":"(L140^(1/2))*(L143^2)*L142*L141","v":0}]
[null,null,null,null,null,"средняя величина напора воды в трубопроводе на поврежденном участке с данным типом свищевого повреждения","м2"]
[null,null,null,null,null,"продолжительность утечки с момента обнаружения до отключения поврежденного участка или заделки отверстия","час"]
[null,null,null,null,null,"число повреждений данного типа","ед"]
[null,null,null,null,null,"диаметр трубопровода на поврежденном участке","м"]
[]
["et_List22"]
[null,null,null,null,null,"i-ое произведение для формулы",null,{"$f":"(H147^(1/2))*(H150^2)*H149*H148","v":0},{"$f":"(I147^(1/2))*(I150^2)*I149*I148","v":0},{"$f":"(J147^(1/2))*(J150^2)*J149*J148","v":0},{"$f":"(K147^(1/2))*(K150^2)*K149*K148","v":0},{"$f":"(L147^(1/2))*(L150^2)*L149*L148","v":0}]
[null,null,null,null,null,"средняя глубина заложения трубопровода","м"]
[null,null,null,null,null,"продолжительность утечки с момента обнаружения до отключения поврежденного участка или заделки отверстия","час"]
[null,null,null,null,null,"число повреждений","ед"]
[null,null,null,null,null,"диаметр трубопровода на поврежденном участке","м"]
[]
["et_List23"]
[null,null,null,null,null,"произведение i-ой протяженности и нормы",null,{"$f":"IFERROR(H154*H155,\"\")","v":0},{"$f":"IFERROR(I154*I155,\"\")","v":0},{"$f":"IFERROR(J154*J155,\"\")","v":0},{"$f":"IFERROR(K154*K155,\"\")","v":0},{"$f":"IFERROR(L154*L155,\"\")","v":0}]
[null,null,null,null,null,"протяженность участка водоснабжения одного диаметра и материала","км"]
[null,null,null,null,null,"норма естественной убыли","кг/(км*ч)",{"$f":"IFERROR(VLOOKUP(H156,нормы!$B$31:$F$55,IF(H157=нормы!$C$30,2,IF(H157=нормы!$D$30,3,IF(H157=нормы!$E$30,4,IF(H157=нормы!$F$30,5)))),FALSE),0)","v":0},{"$f":"IFERROR(VLOOKUP(I156,нормы!$B$31:$F$55,IF(I157=нормы!$C$30,2,IF(I157=нормы!$D$30,3,IF(I157=нормы!$E$30,4,IF(I157=нормы!$F$30,5)))),FALSE),0)","v":0},{"$f":"IFERROR(VLOOKUP(J156,нормы!$B$31:$F$55,IF(J157=нормы!$C$30,2,IF(J157=нормы!$D$30,3,IF(J157=нормы!$E$30,4,IF(J157=нормы!$F$30,5)))),FALSE),0)","v":0},{"$f":"IFERROR(VLOOKUP(K156,нормы!$B$31:$F$55,IF(K157=нормы!$C$30,2,IF(K157=нормы!$D$30,3,IF(K157=нормы!$E$30,4,IF(K157=нормы!$F$30,5)))),FALSE),0)","v":0},{"$f":"IFERROR(VLOOKUP(L156,нормы!$B$31:$F$55,IF(L157=нормы!$C$30,2,IF(L157=нормы!$D$30,3,IF(L157=нормы!$E$30,4,IF(L157=нормы!$F$30,5)))),FALSE),0)","v":0}]
[null,null,null,null,null,"внутренний диаметр трубопровода","мм"]
[null,null,null,null,null,"тип трубы"]
[]
["et_List24"]
[null,null,null,null,null,"потери воды за счет естественной убыли в  i-ом РЧВ, размещенным в водопроводных сетях","кг",{"$f":"0.125*H161*H162","v":0},{"$f":"0.125*I161*I162","v":0},{"$f":"0.125*J161*J162","v":0},{"$f":"0.125*K161*K162","v":0},{"$f":"0.125*L161*L162","v":0}]
[null,null,null,null,null,"среднегодовой размер площади смоченной поверхности РЧВ, размещенного в водопроводных сетях","м2"]
[null,null,null,null,null,"годовое время работы РЧВ, размещенного в водопроводных сетях","час"]

{"sheet":"ПРОЧ.ТЕХ","index":8,"n_rows":14,"n_cols":11,"rows_kept":14,"cut":false,"hidden":false,"merged":[[5,3,6,3],[5,4,6,4],[5,5,6,5],[3,3,3,4],[0,3,0,10]]}
[null,null,null,"Приложение 2"]
[]
[]
[null,null,null,"Прочие технологические расходы"]
[]
[null,null,null,"№","Показатели","Ед. изм.","Факт","Факт","Ожидаемый факт","План ОКК","План регулятора"]
[null,null,null,null,null,null,{"$f":"god-3","v":-3},{"$f":"god-2","v":-2},{"$f":"god-1","v":-1},{"$f":"god","v":0},{"$f":"god","v":0}]
[]
[null,null,null,"I","Прочие технологические расходы","м3",{"$f":"G10+G11+G12+G13+G14","v":0},{"$f":"H10+H11+H12+H13+H14","v":0},{"$f":"I10+I11+I12+I13+I14","v":0},{"$f":"J10+J11+J12+J13+J14","v":0},{"$f":"K10+K11+K12+K13+K14","v":0}]
[null,null,null,"1.1","‒ годовые расходы на нужды насосных станций","м3"]
[null,null,null,"1.2","‒ годовые расходы на отбор проб","м3"]
[null,null,null,"1.3","‒ годовые расходы на работу технологического оборудования","м3"]
[null,null,null,"1.4","‒ годовой расход воды, связанный с водоподготовкой котельных, водогрейных котлов, подогревателей, охлаждением оборудования котельных, промывкой водогрейных котлов и подогревателей","м3"]
[null,null,null,"1.5","‒ годовые расходы на промывку, ремонтные работы и дезинфекцию технологических трубопроводов","м3",{"$f":"СБРОС!H9+ПРОМЫВ!H9+ДЕЗИНФ!H9","v":0},{"$f":"СБРОС!I9+ПРОМЫВ!I9+ДЕЗИНФ!I9","v":0},{"$f":"СБРОС!J9+ПРОМЫВ!J9+ДЕЗИНФ!J9","v":0},{"$f":"СБРОС!K9+ПРОМЫВ!K9+ДЕЗИНФ!K9","v":0},{"$f":"СБРОС!L9+ПРОМЫВ!L9+ДЕЗИНФ!L9","v":0}]

{"sheet":"СБРОС","index":9,"n_rows":11,"n_cols":13,"rows_kept":11,"cut":false,"hidden":false,"merged":[[0,3,0,11],[5,4,6,4],[8,3,8,4],[3,3,3,5],[5,3,6,3],[5,5,6,5],[5,6,6,6]]}
[null,null,null,"Приложение 2"]
[]
[]
[null,null,null,"Количество воды, сбрасываемой перед промывкой"]
[]
[null,null,null,"№","Наименование участка","Показатели","Ед. изм.","Факт","Факт","Ожидаемый факт","План ОКК","План регулятора"]
[null,null,null,null,null,null,null,{"$f":"god-3","v":-3},{"$f":"god-2","v":-2},{"$f":"god-1","v":-1},{"$f":"god","v":0},{"$f":"god","v":0}]
[]
[null,null,null,null,null,"Количество воды, сбрасываемой перед промывкой","м3",{"$f":"0.785*SUMIF($F10:$F11,\"i-ое выражение для формулы\",H10:H11)","v":0},{"$f":"0.785*SUMIF($F10:$F11,\"i-ое выражение для формулы\",I10:I11)","v":0},{"$f":"0.785*SUMIF($F10:$F11,\"i-ое выражение для формулы\",J10:J11)","v":0},{"$f":"0.785*SUMIF($F10:$F11,\"i-ое выражение для формулы\",K10:K11)","v":0},{"$f":"0.785*SUMIF($F10:$F11,\"i-ое выражение для формулы\",L10:L11)","v":0}]
[null,null,null,0]
[null,null,null,null,"Добавить участок",null,null,null,null,null,null,null,"END"]

{"sheet":"ПРОМЫВ","index":10,"n_rows":11,"n_cols":13,"rows_kept":11,"cut":false,"hidden":false,"merged":[[8,3,8,4],[0,3,0,11],[3,3,3,5],[5,3,6,3],[5,4,6,4],[5,5,6,5],[5,6,6,6]]}
[null,null,null,"Приложение 2"]
[]
[]
[null,null,null,"Расход воды на промывку"]
[]
[null,null,null,"№","Наименование участка","Показатели","Ед. изм.","Факт","Факт","Ожидаемый факт","План ОКК","План регулятора"]
[null,null,null,null,null,null,null,{"$f":"god-3","v":-3},{"$f":"god-2","v":-2},{"$f":"god-1","v":-1},{"$f":"god","v":0},{"$f":"god","v":0}]
[]
[null,null,null,null,null,"Расход воды на промывку","м3",{"$f":"2800*SUMIF($F10:$F11,\"i-ое выражение для формулы\",H10:H11)","v":0},{"$f":"2800*SUMIF($F10:$F11,\"i-ое выражение для формулы\",I10:I11)","v":0},{"$f":"2800*SUMIF($F10:$F11,\"i-ое выражение для формулы\",J10:J11)","v":0},{"$f":"2800*SUMIF($F10:$F11,\"i-ое выражение для формулы\",K10:K11)","v":0},{"$f":"2800*SUMIF($F10:$F11,\"i-ое выражение для формулы\",L10:L11)","v":0}]
[]
[null,null,null,null,null,null,null,null,null,null,null,null,"END"]

{"sheet":"ДЕЗИНФ","index":11,"n_rows":14,"n_cols":13,"rows_kept":14,"cut":false,"hidden":false,"merged":[[5,6,6,6],[0,3,0,11],[8,3,12,4],[3,3,3,5],[5,3,6,3],[5,4,6,4],[5,5,6,5]]}
[null,null,null,"Приложение 2"]
[]
[]
[null,null,null,"Расход воды на дезинфекцию"]
[]
[null,null,null,"№","Наименование участка","Показатели","Ед. изм.","Факт","Факт","Ожидаемый факт","План ОКК","План регулятора"]
[null,null,null,null,null,null,null,{"$f":"god-3","v":-3},{"$f":"god-2","v":-2},{"$f":"god-1","v":-1},{"$f":"god","v":0},{"$f":"god","v":0}]
[]
[null,null,null,null,null,"Расход воды на дезинфекцию","м3",{"$f":"0.785*SUMIF($F10:$F14,\"i-ое выражение для формулы\",H10:H14)","v":0},{"$f":"0.785*SUMIF($F10:$F14,\"i-ое выражение для формулы\",I10:I14)","v":0},{"$f":"0.785*SUMIF($F10:$F14,\"i-ое выражение для формулы\",J10:J14)","v":0},{"$f":"0.785*SUMIF($F10:$F14,\"i-ое выражение для формулы\",K10:K14)","v":0},{"$f":"0.785*SUMIF($F10:$F14,\"i-ое выражение для формулы\",L10:L14)","v":0}]
[]
[null,null,null,null,null,"сумма коэффициентов для формулы",null,{"$f":"H12+H13","v":0},{"$f":"I12+I13","v":0},{"$f":"J12+J13","v":0},{"$f":"K12+K13","v":0},{"$f":"L12+L13","v":0}]
[null,null,null,null,null,"коэффициент К1, учитывающий необходимое увеличение объема воды на дезинфекцию для достижения концентраций хлорной воды в наиболее удаленной точке участка трубопровода (не менее 0,3 г/м3 остаточного хлора в промывной воде)"]
[null,null,null,null,null,"коэффициент К2, учитывающий необходимое увеличение объема воды на промывку для достижения концентраций хлорной воды в наиболее удаленной точке участка трубопровода (не менее 0,3 г/м3 остаточного хлора в промывной воде)"]
[null,null,null,null,null,null,null,null,null,null,null,null,"END"]

{"sheet":"ХОЗ-БЫТ_ДО","index":12,"n_rows":11,"n_cols":13,"rows_kept":11,"cut":false,"hidden":false,"merged":[[8,3,8,4],[0,3,0,11],[3,3,3,5],[5,3,6,3],[5,4,6,4],[5,5,6,5],[5,6,6,6]]}
[null,null,null,"Приложение 2"]
[]
[]
[null,null,null,"Расходы на хозяйственно-бытовые нужды"]
[]
[null,null,null,"№","Наименование оборудования","Показатели","Ед. изм.","Факт","Факт","Ожидаемый факт","План ОКК","План регулятора"]
[null,null,null,null,null,null,null,{"$f":"god-3","v":-3},{"$f":"god-2","v":-2},{"$f":"god-1","v":-1},{"$f":"god","v":0},{"$f":"god","v":0}]
[]
[null,null,null,null,null,"Расходы на хозяйственно-бытовые нужды","м3",{"$f":"SUMIF($F10:$F11,\"расход по оборудованию\",H10:H11)","v":0},{"$f":"SUMIF($F10:$F11,\"расход по оборудованию\",I10:I11)","v":0},{"$f":"SUMIF($F10:$F11,\"расход по оборудованию\",J10:J11)","v":0},{"$f":"SUMIF($F10:$F11,\"расход по оборудованию\",K10:K11)","v":0},{"$f":"SUMIF($F10:$F11,\"расход по оборудованию\",L10:L11)","v":0}]
[null,null,null,0]
[null,null,null,null,"Добавить оборудование",null,null,null,null,null,null,null,"END"]

{"sheet":"ПОТЕРИ_ЕСТ","index":13,"n_rows":11,"n_cols":11,"rows_kept":11,"cut":false,"hidden":false,"merged":[[5,3,6,3],[5,4,6,4],[5,5,6,5],[3,3,3,4],[0,3,0,10]]}
[null,null,null,"Приложение 2"]
[]
[]
[null,null,null,"Потери воды в водопроводных сооружениях"]
[]
[null,null,null,"№","Показатели","Ед. изм.","Факт","Факт","Ожидаемый факт","План ОКК","План регулятора"]
[null,null,null,null,null,null,{"$f":"god-3","v":-3},{"$f":"god-2","v":-2},{"$f":"god-1","v":-1},{"$f":"god","v":0},{"$f":"god","v":0}]
[]
[null,null,null,"I","Потери воды в водопроводных сооружениях","м3",{"$f":"G10+G11","v":0},{"$f":"H10+H11","v":0},{"$f":"I10+I11","v":0},{"$f":"J10+J11","v":0},{"$f":"K10+K11","v":0}]
[null,null,null,"1.1","потери воды за счет естественной убыли в РЧВ","м3",{"$f":"ПОТЕРИ_РЧВ!H9/998","v":0},{"$f":"ПОТЕРИ_РЧВ!I9/998","v":0},{"$f":"ПОТЕРИ_РЧВ!J9/998","v":0},{"$f":"ПОТЕРИ_РЧВ!K9/998","v":0},{"$f":"ПОТЕРИ_РЧВ!L9/998","v":0}]
[null,null,null,"1.2","потери воды при транспортировке по трубопроводам","м3",{"$f":"ПОТЕРИ_ТР!H39/998","v":0},{"$f":"ПОТЕРИ_ТР!I39/998","v":0},{"$f":"ПОТЕРИ_ТР!J39/998","v":0},{"$f":"ПОТЕРИ_ТР!K39/998","v":0},{"$f":"ПОТЕРИ_ТР!L39/998","v":0}]

{"sheet":"ПОТЕРИ_РЧВ","index":14,"n_rows":11,"n_cols":13,"rows_kept":11,"cut":false,"hidden":false,"merged":[[5,6,6,6],[0,3,0,11],[8,3,8,4],[3,3,3,5],[5,3,6,3],[5,4,6,4],[5,5,6,5]]}
[null,null,null,"Приложение 2"]
[]
[]
[null,null,null,"Потери воды за счет естественной убыли в РЧВ"]
[]
[null,null,null,"№","Наименование РЧВ","Показатели","Ед. изм.","Факт","Факт","Ожидаемый факт","План ОКК","План регулятора"]
[null,null,null,null,null,null,null,{"$f":"god-3","v":-3},{"$f":"god-2","v":-2},{"$f":"god-1","v":-1},{"$f":"god","v":0},{"$f":"god","v":0}]
[]
[null,null,null,null,null,"Потери воды за счет естественной убыли во всех РЧВ","кг",{"$f":"SUMIF($F10:$F11,\"потери воды за счет естественной убыли в РЧВ\",H10:H11)","v":0},{"$f":"SUMIF($F10:$F11,\"потери воды за счет естественной убыли в РЧВ\",I10:I11)","v":0},{"$f":"SUMIF($F10:$F11,\"потери воды за счет естественной убыли в РЧВ\",J10:J11)","v":0},{"$f":"SUMIF($F10:$F11,\"потери воды за счет естественной убыли в РЧВ\",K10:K11)","v":0},{"$f":"SUMIF($F10:$F11,\"потери воды за счет естественной убыли в РЧВ\",L10:L11)","v":0}]
[null,null,null,0]
[null,null,null,null,"Добавить РЧВ",null,null,null,null,null,null,null,"END"]

{"sheet":"ПОТЕРИ_ТР","index":15,"n_rows":41,"n_cols":12,"rows_kept":41,"cut":false,"hidden":false,"merged":[[0,3,0,11],[35,4,36,4],[38,3,39,4],[33,3,33,5],[35,3,36,3],[35,5,36,5],[35,6,36,6]]}
[null,null,null,"Приложение 2"]
[]
[]
[]
[]
[]
[]
[]
[]
[]
[]
[]
[]
[]
[]
[]
[]
[]
[]
[]
[]
[]
[]
[]
[]
[]
[]
[]
[]
[]
[]
[]
[]
[null,null,null,"Потери воды при транспортировке по внутрихозяйственным трубопроводам"]
[]
[null,null,null,"№","Наименование трубопровода","Показатели","Ед. изм.","Факт","Факт","Ожидаемый факт","План ОКК","План регулятора"]
[null,null,null,null,null,null,null,{"$f":"god-3","v":-3},{"$f":"god-2","v":-2},{"$f":"god-1","v":-1},{"$f":"god","v":0},{"$f":"god","v":0}]
[]
[null,null,null,"0",null,"Потери воды при транспортировке по внутрихозяйственным трубопроводам","кг",{"$f":"H40*SUMIF($F40:$F41,\"произведение протяженности и нормы\",H40:H41)","v":0},{"$f":"I40*SUMIF($F40:$F41,\"произведение протяженности и нормы\",I40:I41)","v":0},{"$f":"J40*SUMIF($F40:$F41,\"произведение протяженности и нормы\",J40:J41)","v":0},{"$f":"K40*SUMIF($F40:$F41,\"произведение протяженности и нормы\",K40:K41)","v":0},{"$f":"L40*SUMIF($F40:$F41,\"произведение протяженности и нормы\",L40:L41)","v":0}]
[null,null,null,null,null,"годовое время пребывания воды в трубопроводе","час"]
[null,null,null,null,"Добавить трубопровод"]

{"sheet":"нормы","index":16,"n_rows":55,"n_cols":6,"rows_kept":55,"cut":false,"hidden":true,"merged":[[0,1,0,4],[28,2,28,5]]}
["Внутренний диаметр трубопровода, мм","Нормы естественной убыли воды при подаче по напорным трубопроводам в килограммах на 1 км за час"]
[null,"стальные","чугунные","асбестоцементные","железобетонные","ВТР"]
[100,16.8,42,"-","-"]
[125,21,54,"-","-"]
[150,25.2,63,"-","-"]
[200,33.6,84,118.8,120]
[250,42,93,133.19999999999999,132]
[300,51,102,145.19999999999999,144]
[350,54,108,157.19999999999999,156]
[400,60,117,168,168]
[450,63,126,177.6,180]
[500,66,132,188.4,192]
[600,72,144,"-",204]
[700,78,153,"-",222]
[800,81,162,"-",234]
[900,87,174,"-",252]
[1000,90,180,"-",264]
[1100,93,"-","-",276]
[1200,99,"-","-",288]
[1400,105,"-","-",300]
[1600,111,"-","-",312]
[1800,117,"-","-",372]
[2000,126,"-","-",414]
["ВД"]
[]
[]
[]
[]
[null,"Внутренний диаметр трубопровода, мм","Нормы естественной убыли воды при подаче по напорным трубопроводам в килограммах на 1 км за час"]
[null,null,"стальные или полиэтиленовые","чугунные","асбестоцементные","железобетонные"]
[1,50,8.4,21,29.7,30]
[2,76,12.77,31.92,45.14,45.6]
[3,90,15.2,37.799999999999997,53.46,54]
[4,100,16.8,42,59.4,60]
[5,110,18.48,46.2,65.34,66]
[6,125,21,54,74.25,75]
[7,150,25.2,63,89.1,90]
[8,200,33.6,84,118.8,120]
[9,250,42,93,133.19999999999999,132]
[10,300,51,102,145.19999999999999,144]
[11,350,54,108,157.19999999999999,156]
[12,400,60,117,168,168]
[13,450,63,126,177.6,180]
[14,500,66,132,188.4,192]
[15,600,72,144,236.8,204]
[16,700,78,153,294,222]
[17,800,81,162,336,234]
[18,900,87,174,378,252]
[19,1000,90,180,420,264]
[20,1100,93,212.67,462,276]
[21,1200,99,232,504,288]
[22,1400,105,270.67,588,300]
[23,1600,111,309.33999999999997,672,312]
[24,1800,117,348.01,756,372]
[25,2000,126,386.68,840,414]

{"sheet":"СКР_УТЕЧ","index":17,"n_rows":11,"n_cols":13,"rows_kept":11,"cut":false,"hidden":false,"merged":[[8,3,8,4],[5,6,6,6],[0,3,0,11],[3,3,3,5],[5,3,6,3],[5,4,6,4],[5,5,6,5]]}
[null,null,null,"Приложение 2"]
[]
[]
[null,null,null,"Скрытые утечки из РЧВ сверх норм естественной убыли воды"]
[]
[null,null,null,"№","Наименование РЧВ","Показатели","Ед. изм.","Факт","Факт","Ожидаемый факт","План ОКК","План регулятора"]
[null,null,null,null,null,null,null,{"$f":"god-3","v":-3},{"$f":"god-2","v":-2},{"$f":"god-1","v":-1},{"$f":"god","v":0},{"$f":"god","v":0}]
[]
[null,null,null,null,null,"Скрытые утечки из РЧВ сверх норм естественной убыли воды","м3",{"$f":"SUMIF($F10:$F11,\"произведение по утечке\",H10:H11)-ПОТЕРИ_ЕСТ!G10","v":0},{"$f":"SUMIF($F10:$F11,\"произведение по утечке\",I10:I11)-ПОТЕРИ_ЕСТ!H10","v":0},{"$f":"SUMIF($F10:$F11,\"произведение по утечке\",J10:J11)-ПОТЕРИ_ЕСТ!I10","v":0},{"$f":"SUMIF($F10:$F11,\"произведение по утечке\",K10:K11)-ПОТЕРИ_ЕСТ!J10","v":0},{"$f":"SUMIF($F10:$F11,\"произведение по утечке\",L10:L11)-ПОТЕРИ_ЕСТ!K10","v":0}]
[]
[null,null,null,null,null,null,null,null,null,null,null,null,"END"]

{"sheet":"ТРАНСП","index":18,"n_rows":61,"n_cols":13,"rows_kept":61,"cut":false,"hidden":false,"merged":[[0,3,0,12],[3,3,3,4],[5,3,6,3],[5,4,6,4],[5,5,6,5],[5,9,6,9],[5,11,6,11]]}
[null,null,null,"Приложение 2"]
[]
[]
[null,null,null,"Расчет расходов и потерь при транспортировке горячей, питьевой и технической воды"]
[]
[null,null,null,"№","Показатели","Ед. изм.","Факт","Факт","Ожидаемый факт","Доля","План ОКК","Доля","План регулятора"]
[null,null,null,null,null,null,{"$f":"god-3","v":-3},{"$f":"god-2","v":-2},{"$f":"god-1","v":-1},null,{"$f":"god","v":0},null,{"$f":"god","v":0}]
[]
[null,null,null,"I","РАСХОДЫ ВОДЫ","м3",{"$f":"G10+G26+G27","v":0},{"$f":"H10+H26+H27","v":0},{"$f":"I10+I26+I27","v":0},{"$f":"IF($K$9=0,,K9/$K$9)","v":0},{"$f":"K10+K26+K27","v":0},{"$f":"IF($M$9=0,,M9/$M$9)","v":0},{"$f":"M10+M26+M27","v":0}]
[null,null,null,"1.1","Технологические расходы","м3",{"$f":"G11+G24+G25","v":0},{"$f":"H11+H24+H25","v":0},{"$f":"I11+I24+I25","v":0},{"$f":"IF($K$9=0,,K10/$K$9)","v":0},{"$f":"K11+K24+K25","v":0},{"$f":"IF($M$9=0,,M10/$M$9)","v":0},{"$f":"M11+M24+M25","v":0}]
[null,null,null,"1.1.1","Расходы на обслуживание водопроводных сетей","м3",{"$f":"G12+G13+G14+G15+G16+G17+G18","v":0},{"$f":"H12+H13+H14+H15+H16+H17+H18","v":0},0,0,0,0,0]
[null,null,null,"1.1.1.1","на промывку водопроводных сетей","м3",{"$f":"ПРОМЫВ_СЕТЬ!H9","v":0},{"$f":"ПРОМЫВ_СЕТЬ!I9","v":0},{"$f":"ПРОМЫВ_СЕТЬ!J9","v":0},0,{"$f":"ПРОМЫВ_СЕТЬ!L9","v":0},0,{"$f":"ПРОМЫВ_СЕТЬ!N9","v":0}]
[null,null,null,"1.1.1.2","на дезинфекцию водопроводных сетей","м3",{"$f":"ДЕЗИНФ_СЕТЬ!H9","v":0},{"$f":"ДЕЗИНФ_СЕТЬ!I9","v":0},{"$f":"ДЕЗИНФ_СЕТЬ!J9","v":0},0,{"$f":"ДЕЗИНФ_СЕТЬ!K9","v":0},0,{"$f":"ДЕЗИНФ_СЕТЬ!L9","v":0}]
[null,null,null,"1.1.1.3","собственные нужды насосных станций","м3",null,null,null,0,null,0]
[null,null,null,"1.1.1.4","на чистку резервуаров (опорожнение, промывка, дезинфекция)","м3",{"$f":"ЧИСТ_РЕЗ!H9","v":0},{"$f":"ЧИСТ_РЕЗ!I9","v":0},{"$f":"ЧИСТ_РЕЗ!J9","v":0},0,{"$f":"ЧИСТ_РЕЗ!K9","v":0},0,{"$f":"ЧИСТ_РЕЗ!L9","v":0}]
[null,null,null,"1.1.1.5","на опорожнение трубопроводов","м3",{"$f":"СБРОС_ТРУБ!H9","v":0},{"$f":"СБРОС_ТРУБ!I9","v":0},{"$f":"СБРОС_ТРУБ!J9","v":0},0,{"$f":"СБРОС_ТРУБ!K9","v":0},0,{"$f":"СБРОС_ТРУБ!L9","v":0}]
[null,null,null,"1.1.1.6","на пробоотбор","м3",{"$f":"ПРОБА_ТРУБ!H9","v":0},{"$f":"ПРОБА_ТРУБ!I9","v":0},{"$f":"ПРОБА_ТРУБ!J9","v":0},0,{"$f":"ПРОБА_ТРУБ!K9","v":0},0,{"$f":"ПРОБА_ТРУБ!L9","v":0}]
[null,null,null,"1.1.1.7","на противопожарные нужды","м3",{"$f":"G19+G20","v":0},{"$f":"H19+H20","v":0},0,0,0,0,0]
[null,null,null,"1.1.1.7.1","пожаротушение","м3",{"$f":"ПОЖАР!H9","v":0},{"$f":"ПОЖАР!I9","v":0},{"$f":"ПОЖАР!J9","v":0},0,{"$f":"ПОЖАР!K9","v":0},0,{"$f":"ПОЖАР!L9","v":0}]
[null,null,null,"1.1.1.7.2","проверка пожарных гидрантов на водоотдачу","м3",{"$f":"3.6*G21*G22*G23","v":0},{"$f":"3.6*H21*H22*H23","v":0},0,0,0,0,0]
[null,null,null,"1.1.1.7.2.1","расход воды на 1 гидрант","л/сек",15,15,15,null,15,null,15]
[null,null,null,"1.1.1.7.2.2","продолжительность проверки","час",0.03,0.03,0.03,null,0.03,null,0.03]
[null,null,null,"1.1.1.7.2.3","количество гидрантов, проверяемых за год","ед."]
[null,null,null,"1.1.2","Расходы на нужды системы водоотведения","м3",null,null,null,0,null,0]
[null,null,null,"1.1.3","Расходы на нужды водоподготовки","м3",null,null,null,{"$f":"IF($K$9=0,,K25/$K$9)","v":0}]
[null,null,null,"1.2","Расходы на хозяйственно-бытовые нужды","м3",{"$f":"'ХОЗ-БЫТ_ПОСЛЕ'!H9","v":0},{"$f":"'ХОЗ-БЫТ_ПОСЛЕ'!I9","v":0},{"$f":"'ХОЗ-БЫТ_ПОСЛЕ'!J9","v":0},0,{"$f":"'ХОЗ-БЫТ_ПОСЛЕ'!K9","v":0},0,{"$f":"'ХОЗ-БЫТ_ПОСЛЕ'!L9","v":0}]
[null,null,null,"1.3","Организационно-учетные расходы","м3",null,null,null,0,null,0]
[null,null,null,"II","ПОТЕРИ ВОДЫ:","м3",{"$f":"G29+G49+G52+G53","v":0},{"$f":"H29+H49+H52+H53","v":0},{"$f":"I29+I49+I52+I53","v":0},{"$f":"IF($K$28=0,,K28/$K$28)","v":0},{"$f":"K29+K49+K52+K53","v":0},{"$f":"IF($M$28=0,,M28/$M$28)","v":0},{"$f":"M29+M49+M52+M53","v":0}]
[null,null,null,"2.1","При повреждениях в сетях","м3",{"$f":"G30+G31+G36+G41","v":0},{"$f":"H30+H31+H36+H41","v":0},{"$f":"I30+I31+I36+I41","v":0},{"$f":"IF($K$28=0,,K29/$K$28)","v":0},{"$f":"K30+K31+K36+K41","v":0},{"$f":"IF($M$28=0,,M29/$M$28)","v":0},{"$f":"M30+M31+M36+M41","v":0}]
[null,null,null,"2.1.1","При авариях и повреждениях трубопроводов","м3",{"$f":"СВИЩ!H9+ТРЕЩ!H9+РАЗРЫВ!H9","v":0},{"$f":"СВИЩ!I9+ТРЕЩ!I9+РАЗРЫВ!I9","v":0},{"$f":"СВИЩ!J9+ТРЕЩ!J9+РАЗРЫВ!J9","v":0},{"$f":"IF($K$28=0,,K30/$K$28)","v":0},{"$f":"СВИЩ!K9+ТРЕЩ!K9+РАЗРЫВ!K9","v":0},{"$f":"IF($M$28=0,,M30/$M$28)","v":0},{"$f":"СВИЩ!L9+ТРЕЩ!L9+РАЗРЫВ!L9","v":0}]
[null,null,null,"2.1.2","Утечки воды через уплотнения сетевой арматуры","м3",{"$f":"G32*G33*G34*G35","v":0},{"$f":"H32*H33*H34*H35","v":0},0,{"$f":"IF($K$28=0,,K31/$K$28)","v":0},0,{"$f":"IF($M$28=0,,M31/$M$28)","v":0},0]
[null,null,null,"2.1.2.1","доля арматуры, имеющей утечки","доли ед."]
[null,null,null,"2.1.2.2","общее количество сетевой арматуры","ед."]
[null,null,null,"2.1.2.3","средний расход воды при утечке через уплотнения сетевой арматуры","м3/сутки"]
[null,null,null,"2.1.2.4","количество суток за календарный период","сутки"]
[null,null,null,"2.1.3","Утечки воды через водоразборные колонки","м3",{"$f":"G37*G38*G39*G40","v":0},{"$f":"H37*H38*H39*H40","v":0},0,{"$f":"IF($K$28=0,,K36/$K$28)","v":0},0,{"$f":"IF($M$28=0,,M36/$M$28)","v":0},0]
[null,null,null,"2.1.3.1","доля водоразборных колонок, имеющих утечки","доли ед."]
[null,null,null,"2.1.3.2","общее количество водоразборных колонок","ед."]
[null,null,null,"2.1.3.3","средний расход воды при утечке через водоразборную колонку","м3/сутки"]
[null,null,null,"2.1.3.4","количество суток за календарный период","сутки"]
[null,null,null,"2.1.4","Утечки воды через водоразборные колонки при включении и выключении","м3",{"$f":"9600*G45*G42*(G44^1/2)*G46*G47*G48","v":0},{"$f":"9600*H45*H42*(H44^1/2)*H46*H47*H48","v":0},{"$f":"9600*I45*I42*(I44^1/2)*I46*I47*I48","v":0},{"$f":"IF($K$28=0,,K41/$K$28)","v":0},{"$f":"9600*K45*K42*(K44^1/2)*K46*K47*K48","v":0},{"$f":"IF($M$28=0,,M41/$M$28)","v":0},{"$f":"9600*M45*M42*(M44^1/2)*M46*M47*M48","v":0}]
[null,null,null,"2.1.4.1","площадь сечения отверстия","м2",{"$f":"(3.14*G43^2)/4","v":0},{"$f":"(3.14*H43^2)/4","v":0},0,null,0,null,0]
[null,null,null,"2.1.4.2","диаметр отверстия водоразборной колонки","м"]
[null,null,null,"2.1.4.3","средняя величина напора воды в трубопроводе","м2"]
[null,null,null,"2.1.4.4","продолжительность утечки по фактическим данным","час"]
[null,null,null,"2.1.4.5","количество включений водоразборной колонки в сутки","ед",20,20,20,null,20,null,20]
[null,null,null,"2.1.4.6","количество суток за календарный период","сутки"]
[null,null,null,"2.1.4.7","количество водоразборных колонок","ед"]
[null,null,null,"2.2","Естественная убыль","м3",{"$f":"G50+G51","v":0},{"$f":"H50+H51","v":0},0,{"$f":"IF($K$28=0,,K49/$K$28)","v":0},0,{"$f":"IF($M$28=0,,M49/$M$28)","v":0},0]
[null,null,null,"2.2.1","потери при транспортировке потребителям","м3",{"$f":"ПОТЕРИ_ТРАНСП!H40/998","v":0},{"$f":"ПОТЕРИ_ТРАНСП!I40/998","v":0},{"$f":"ПОТЕРИ_ТРАНСП!J40/998","v":0},{"$f":"IF($K$28=0,,K50/$K$28)","v":0},{"$f":"ПОТЕРИ_ТРАНСП!K40/998","v":0},{"$f":"IF($M$28=0,,M50/$M$28)","v":0},{"$f":"ПОТЕРИ_ТРАНСП!L40/998","v":0}]
[null,null,null,"2.2.2","убыль воды при хранении в РЧВ, размещенных в водопроводных сетях","м3",{"$f":"ПОТЕРИ_РЧВ_ТР!H9/998","v":0},{"$f":"ПОТЕРИ_РЧВ_ТР!I9/998","v":0},{"$f":"ПОТЕРИ_РЧВ_ТР!J9/998","v":0},{"$f":"IF($K$28=0,,K51/$K$28)","v":0},{"$f":"ПОТЕРИ_РЧВ_ТР!K9/998","v":0},{"$f":"IF($M$28=0,,M51/$M$28)","v":0},{"$f":"ПОТЕРИ_РЧВ_ТР!L9/998","v":0}]
[null,null,null,"2.3","Расходы на отогрев трубопроводов","м3",null,null,null,{"$f":"IF($K$28=0,,K52/$K$28)","v":0},null,{"$f":"IF($M$28=0,,M52/$M$28)","v":0}]
[null,null,null,"2.4","Скрытые утечки, неучтенные потери и потери по невыясненным причинам","м3",null,null,null,{"$f":"IF($K$28=0,,K53/$K$28)","v":0},null,{"$f":"IF($M$28=0,,M53/$M$28)","v":0}]
[null,null,null,null,"объем воды, поданной в сеть","м3"]
[null,null,null,null,"объем воды, отпущенной абонентам","м3"]
[null,null,null,null,"суммарный годовой объем расходов воды","м3",{"$f":"G9","v":0},{"$f":"H9","v":0},{"$f":"I9","v":0},null,{"$f":"K9","v":0},null,{"$f":"M9","v":0}]
[null,null,null,null,"объем потерь при повреждениях водопроводных сетей","м3",{"$f":"G30","v":0},{"$f":"H30","v":0},{"$f":"I30","v":0},null,{"$f":"K30","v":0},null,{"$f":"M30","v":0}]
[null,null,null,null,"объем воды, не зарегистрированный средствами измерений","м3/год",{"$f":"0.018*G59*G60","v":0},{"$f":"0.018*H59*H60","v":0},0,null,0,null,0]
[null,null,null,null,"объем воды, не зарегистрированный средствами измерений абонентов","м3/мес"]
[null,null,null,null,"коэффициент приборного учета",null,{"$f":"IF(G54=0,,G55/G54)","v":0},{"$f":"IF(H54=0,,H55/H54)","v":0},{"$f":"IF(I54=0,,I55/I54)","v":0},null,{"$f":"IF(K54=0,,K55/K54)","v":0},null,{"$f":"IF(M54=0,,M55/M54)","v":0}]
[null,null,null,null,"объем потерь за счет естественной убыли","м3",{"$f":"G49","v":0},{"$f":"H49","v":0},0,{"$f":"IF($K$28=0,,K61/$K$28)","v":0},0,{"$f":"IF($M$28=0,,M61/$M$28)","v":0},0]

{"sheet":"ПРОМЫВ_СЕТЬ","index":19,"n_rows":11,"n_cols":15,"rows_kept":11,"cut":false,"hidden":false,"merged":[[8,3,8,4],[3,3,3,5],[0,3,0,13],[5,3,6,3],[5,5,6,5],[5,6,6,6],[5,10,6,10],[5,12,6,12],[5,4,6,4]]}
[null,null,null,"Приложение 2"]
[]
[]
[null,null,null,"Расход воды на промывку трубопроводов"]
[]
[null,null,null,"№","Тип промывочного устройства/водоспуска","Показатели","Ед. изм.","Факт","Факт","Ожидаемый факт","Доля","План ОКК","Доля","План регулятора"]
[null,null,null,null,null,null,null,{"$f":"god-3","v":-3},{"$f":"god-2","v":-2},{"$f":"god-1","v":-1},null,{"$f":"god","v":0},null,{"$f":"god","v":0}]
[]
[null,null,null,null,null,"Расход воды на промывку трубопроводов","м3",{"$f":"2800*SUMIF($F10:$F11,\" выражение для формулы\",H10:H11)","v":0},{"$f":"2800*SUMIF($F10:$F11,\" выражение для формулы\",I10:I11)","v":0},{"$f":"2800*SUMIF($F10:$F11,\" выражение для формулы\",J10:J11)","v":0},null,{"$f":"2800*SUMIF($F10:$F11,\" выражение для формулы\",L10:L11)","v":0},null,{"$f":"2800*SUMIF($F10:$F11,\" выражение для формулы\",N10:N11)","v":0}]
[null,null,null,0]
[null,null,null,null,"Добавить тип промывочного устройства/водоспуска",null,null,null,null,null,null,null,null,null,"END"]

{"sheet":"ДЕЗИНФ_СЕТЬ","index":20,"n_rows":11,"n_cols":13,"rows_kept":11,"cut":false,"hidden":false,"merged":[[8,3,8,4],[0,3,0,11],[3,3,3,5],[5,3,6,3],[5,4,6,4],[5,5,6,5],[5,6,6,6]]}
[null,null,null,"Приложение 2"]
[]
[]
[null,null,null,"Расход воды на дезинфекцию трубопроводов"]
[]
[null,null,null,"№","Тип промывочного устройства/водоспуска","Показатели","Ед. изм.","Факт","Факт","Ожидаемый факт","План ОКК","План регулятора"]
[null,null,null,null,null,null,null,{"$f":"god-3","v":-3},{"$f":"god-2","v":-2},{"$f":"god-1","v":-1},{"$f":"god","v":0},{"$f":"god","v":0}]
[]
[null,null,null,null,null,"Расход воды на дезинфекцию трубопроводов","м3",{"$f":"SUMIF($F10:$F11,\"расчет\",H10:H11)","v":0},{"$f":"SUMIF($F10:$F11,\"расчет\",I10:I11)","v":0},{"$f":"SUMIF($F10:$F11,\"расчет\",J10:J11)","v":0},{"$f":"SUMIF($F10:$F11,\"расчет\",K10:K11)","v":0},{"$f":"SUMIF($F10:$F11,\"расчет\",L10:L11)","v":0}]
[]
[null,null,null,null,null,null,null,null,null,null,null,null,"END"]

{"sheet":"ЧИСТ_РЕЗ","index":21,"n_rows":11,"n_cols":13,"rows_kept":11,"cut":false,"hidden":false,"merged":[[8,3,8,4],[0,3,0,11],[3,3,3,5],[5,3,6,3],[5,4,6,4],[5,5,6,5],[5,6,6,6]]}
[null,null,null,"Приложение 2"]
[]
[]
[null,null,null,"Расход воды на чистку резервуаров"]
[]
[null,null,null,"№","Наименование резервуаров","Показатели","Ед. изм.","Факт","Факт","Ожидаемый факт","План ОКК","План регулятора"]
[null,null,null,null,null,null,null,{"$f":"god-3","v":-3},{"$f":"god-2","v":-2},{"$f":"god-1","v":-1},{"$f":"god","v":0},{"$f":"god","v":0}]
[]
[null,null,null,null,null,"Расход воды на чистку резервуаров","м3",{"$f":"SUMIF($F10:$F11,\"i-ый расчет\",H10:H11)","v":0},{"$f":"SUMIF($F10:$F11,\"i-ый расчет\",I10:I11)","v":0},{"$f":"SUMIF($F10:$F11,\"i-ый расчет\",J10:J11)","v":0},{"$f":"SUMIF($F10:$F11,\"i-ый расчет\",K10:K11)","v":0},{"$f":"SUMIF($F10:$F11,\"i-ый расчет\",L10:L11)","v":0}]
[null,null,null,0]
[null,null,null,null,"Добавить резервуар",null,null,null,null,null,null,null,"END"]

{"sheet":"СБРОС_ТРУБ","index":22,"n_rows":11,"n_cols":12,"rows_kept":11,"cut":false,"hidden":false,"merged":[[8,3,8,4],[5,6,6,6],[0,3,0,11],[3,3,3,5],[5,3,6,3],[5,4,6,4],[5,5,6,5]]}
[null,null,null,"Приложение 2"]
[]
[]
[null,null,null,"Количество воды при опорожнении трубопроводов"]
[]
[null,null,null,"№","Наименование участка","Показатели","Ед. изм.","Факт","Факт","Ожидаемый факт","План ОКК","План регулятора"]
[null,null,null,null,null,null,null,{"$f":"god-3","v":-3},{"$f":"god-2","v":-2},{"$f":"god-1","v":-1},{"$f":"god","v":0},{"$f":"god","v":0}]
[]
[null,null,null,null,null,"Количество воды при опорожнении трубопроводов","м3",{"$f":"0.785*SUMIF($F10:$F11,\"i-ое выражение для формулы\",H10:H11)","v":0},{"$f":"0.785*SUMIF($F10:$F11,\"i-ое выражение для формулы\",I10:I11)","v":0},{"$f":"0.785*SUMIF($F10:$F11,\"i-ое выражение для формулы\",J10:J11)","v":0},{"$f":"0.785*SUMIF($F10:$F11,\"i-ое выражение для формулы\",K10:K11)","v":0},{"$f":"0.785*SUMIF($F10:$F11,\"i-ое выражение для формулы\",L10:L11)","v":0}]
[null,null,null,0]
[null,null,null,null,"Добавить участок"]

{"sheet":"ПРОБА_ТРУБ","index":23,"n_rows":11,"n_cols":12,"rows_kept":11,"cut":false,"hidden":false,"merged":[[0,3,0,11],[3,3,3,5],[8,3,8,4],[5,3,6,3],[5,5,6,5],[5,6,6,6],[5,4,6,4]]}
[null,null,null,"Приложение 2"]
[]
[]
[null,null,null,"Расход воды пробоотбор"]
[]
[null,null,null,"№","Тип промывочного устройства/водоспуска","Показатели","Ед. изм.","Факт","Факт","Ожидаемый факт","План ОКК","План регулятора"]
[null,null,null,null,null,null,null,{"$f":"god-3","v":-3},{"$f":"god-2","v":-2},{"$f":"god-1","v":-1},{"$f":"god","v":0},{"$f":"god","v":0}]
[]
[null,null,null,null,null,"Расход воды на пробоотбор","м3",{"$f":"2800*SUMIF($F10:$F11,\"i-ое выражение для формулы\",H10:H11)","v":0},{"$f":"2800*SUMIF($F10:$F11,\"i-ое выражение для формулы\",I10:I11)","v":0},{"$f":"2800*SUMIF($F10:$F11,\"i-ое выражение для формулы\",J10:J11)","v":0},{"$f":"2800*SUMIF($F10:$F11,\"i-ое выражение для формулы\",K10:K11)","v":0},{"$f":"2800*SUMIF($F10:$F11,\"i-ое выражение для формулы\",L10:L11)","v":0}]
[null,null,null,0]
[null,null,null,null,"Добавить тип промывочного устройства/водоспуска"]

{"sheet":"ПОЖАР","index":24,"n_rows":11,"n_cols":12,"rows_kept":11,"cut":false,"hidden":false,"merged":[[8,3,8,4],[0,3,0,11],[5,4,6,4],[3,3,3,5],[5,3,6,3],[5,5,6,5],[5,6,6,6]]}
[null,null,null,"Приложение 2"]
[]
[]
[null,null,null,"Расход воды на пожаротушение"]
[]
[null,null,null,"№","Тип пожарных рукавов","Показатели","Ед. изм.","Факт","Факт","Ожидаемый факт","План ОКК","План регулятора"]
[null,null,null,null,null,null,null,{"$f":"god-3","v":-3},{"$f":"god-2","v":-2},{"$f":"god-1","v":-1},{"$f":"god","v":0},{"$f":"god","v":0}]
[]
[null,null,null,null,null,"Расход воды на пожаротушение","м3",{"$f":"3.6*SUMIF($F10:$F11,\"произведение для формулы\",H10:H11)","v":0},{"$f":"3.6*SUMIF($F10:$F11,\"произведение для формулы\",I10:I11)","v":0},{"$f":"3.6*SUMIF($F10:$F11,\"произведение для формулы\",J10:J11)","v":0},{"$f":"3.6*SUMIF($F10:$F11,\"произведение для формулы\",K10:K11)","v":0},{"$f":"3.6*SUMIF($F10:$F11,\"произведение для формулы\",L10:L11)","v":0}]
[null,null,null,0]
[null,null,null,null,"Добавить тип пожарных рукавов"]

{"sheet":"ХОЗ-БЫТ_ПОСЛЕ","index":25,"n_rows":11,"n_cols":12,"rows_kept":11,"cut":false,"hidden":false,"merged":[[8,3,8,4],[3,3,3,5],[0,3,0,11],[5,3,6,3],[5,5,6,5],[5,6,6,6],[5,4,6,4]]}
[null,null,null,"Приложение 2"]
[]
[]
[null,null,null,"Расходы на хозяйственно-бытовые нужды в случае отбора воды на такие нужды ПОСЛЕ приборов учета, учитывающих подачу воды в распределительную сеть"]
[]
[null,null,null,"№","Наименование оборудования","Показатели","Ед. изм.","Факт","Факт","Ожидаемый факт","План ОКК","План регулятора"]
[null,null,null,null,null,null,null,{"$f":"god-3","v":-3},{"$f":"god-2","v":-2},{"$f":"god-1","v":-1},{"$f":"god","v":0},{"$f":"god","v":0}]
[]
[null,null,null,null,null,"Расходы на хозяйственно-бытовые нужды","м3",{"$f":"SUMIF($F10:$F11,\"расход по i-му оборудованию\",H10:H11)","v":0},{"$f":"SUMIF($F10:$F11,\"расход по i-му оборудованию\",I10:I11)","v":0},{"$f":"SUMIF($F10:$F11,\"расход по i-му оборудованию\",J10:J11)","v":0},{"$f":"SUMIF($F10:$F11,\"расход по i-му оборудованию\",K10:K11)","v":0},{"$f":"SUMIF($F10:$F11,\"расход по i-му оборудованию\",L10:L11)","v":0}]
[null,null,null,0]
[null,null,null,null,"Добавить оборудование"]

{"sheet":"СВИЩ","index":26,"n_rows":11,"n_cols":12,"rows_kept":11,"cut":false,"hidden":false,"merged":[[0,3,0,11],[3,3,3,5],[8,3,8,4],[5,3,6,3],[5,5,6,5],[5,6,6,6],[5,4,6,4]]}
[null,null,null,"Приложение 2"]
[]
[]
[null,null,null,"Потери воды при свищевых повреждениях трубопровода"]
[]
[null,null,null,"№","Тип свищевых повреждений","Показатели","Ед. изм.","Факт","Факт","Ожидаемый факт","План ОКК","План регулятора"]
[null,null,null,null,null,null,null,{"$f":"god-3","v":-3},{"$f":"god-2","v":-2},{"$f":"god-1","v":-1},{"$f":"god","v":0},{"$f":"god","v":0}]
[]
[null,null,null,null,null,"Потери воды при свищевых повреждениях трубопровода","м3",{"$f":"1.92*SUMIF($F10:$F11,\"i-ое произведение для формулы\",H10:H11)","v":0},{"$f":"1.92*SUMIF($F10:$F11,\"i-ое произведение для формулы\",I10:I11)","v":0},{"$f":"1.92*SUMIF($F10:$F11,\"i-ое произведение для формулы\",J10:J11)","v":0},{"$f":"1.92*SUMIF($F10:$F11,\"i-ое произведение для формулы\",K10:K11)","v":0},{"$f":"1.92*SUMIF($F10:$F11,\"i-ое произведение для формулы\",L10:L11)","v":0}]
[null,null,null,0]
[null,null,null,null,"Добавить тип свищевых повреждений"]

{"sheet":"ТРЕЩ","index":27,"n_rows":11,"n_cols":12,"rows_kept":11,"cut":false,"hidden":false,"merged":[[8,3,8,4],[5,6,6,6],[0,3,0,11],[3,3,3,5],[5,3,6,3],[5,4,6,4],[5,5,6,5]]}
[null,null,null,"Приложение 2"]
[]
[]
[null,null,null,"Потери воды при трещинах трубопровода"]
[]
[null,null,null,"№","Трещина","Показатели","Ед. изм.","Факт","Факт","Ожидаемый факт","План ОКК","План регулятора"]
[null,null,null,null,null,null,null,{"$f":"god-3","v":-3},{"$f":"god-2","v":-2},{"$f":"god-1","v":-1},{"$f":"god","v":0},{"$f":"god","v":0}]
[]
[null,null,null,null,null,"Потери воды при трещинах трубопровода","м3",{"$f":"374.4*SUMIF($F10:$F11,\"i-ое произведение для формулы\",H10:H11)","v":0},{"$f":"374.4*SUMIF($F10:$F11,\"i-ое произведение для формулы\",I10:I11)","v":0},{"$f":"374.4*SUMIF($F10:$F11,\"i-ое произведение для формулы\",J10:J11)","v":0},{"$f":"374.4*SUMIF($F10:$F11,\"i-ое произведение для формулы\",K10:K11)","v":0},{"$f":"374.4*SUMIF($F10:$F11,\"i-ое произведение для формулы\",L10:L11)","v":0}]
[null,null,null,0]
[null,null,null,null,"Добавить трещину"]

{"sheet":"РАЗРЫВ","index":28,"n_rows":11,"n_cols":12,"rows_kept":11,"cut":false,"hidden":false,"merged":[[8,3,8,4],[0,3,0,11],[3,3,3,5],[5,3,6,3],[5,4,6,4],[5,5,6,5],[5,6,6,6]]}
[null,null,null,"Приложение 2"]
[]
[]
[null,null,null,"Потери воды при переломах и разрывах трубопровода"]
[]
[null,null,null,"№","Тип повреждения","Показатели","Ед. изм.","Факт","Факт","Ожидаемый факт","План ОКК","План регулятора"]
[null,null,null,null,null,null,null,{"$f":"god-3","v":-3},{"$f":"god-2","v":-2},{"$f":"god-1","v":-1},{"$f":"god","v":0},{"$f":"god","v":0}]
[]
[null,null,null,null,null,"потери воды при переломах и разрывах трубопровода","м3",{"$f":"5652*SUMIF($F10:$F11,\"i-ое произведение для формулы\",H10:H11)","v":0},{"$f":"5652*SUMIF($F10:$F11,\"i-ое произведение для формулы\",I10:I11)","v":0},{"$f":"5652*SUMIF($F10:$F11,\"i-ое произведение для формулы\",J10:J11)","v":0},{"$f":"5652*SUMIF($F10:$F11,\"i-ое произведение для формулы\",K10:K11)","v":0},{"$f":"5652*SUMIF($F10:$F11,\"i-ое произведение для формулы\",L10:L11)","v":0}]
[null,null,null,0]
[null,null,null,null,"Добавить тип повреждения"]

{"sheet":"ПОТЕРИ_ТРАНСП","index":29,"n_rows":43,"n_cols":22,"rows_kept":43,"cut":false,"hidden":false,"merged":[[4,17,4,20],[0,3,0,11],[36,4,37,4],[39,3,40,4],[34,3,34,5],[36,3,37,3],[36,5,37,5],[36,6,37,6]]}
[null,null,null,"Приложение 2"]
[]
[]
[]
[null,null,null,null,null,null,null,null,null,null,null,null,null,null,null,null,"Внутренний диаметр трубопровода, мм","Нормы естественной убыли воды при подаче по напорным трубопроводам в килограммах на 1 км за час"]
[null,null,null,null,null,null,null,null,null,null,null,null,null,null,null,null,null,"стальные или полиэтиленовые","чугунные","асбестоцементные","железобетонные","ТРУБА2"]
[null,null,null,null,null,null,null,null,null,null,null,null,null,null,null,1,50,8.4,21,29.7,30]
[null,null,null,null,null,null,null,null,null,null,null,null,null,null,null,2,76,12.77,31.92,45.14,45.6]
[null,null,null,null,null,null,null,null,null,null,null,null,null,null,null,3,90,15.2,37.799999999999997,53.46,54]
[null,null,null,null,null,null,null,null,null,null,null,null,null,null,null,4,100,16.8,42,59.4,60]
[null,null,null,null,null,null,null,null,null,null,null,null,null,null,null,5,110,18.48,46.2,65.34,66]
[null,null,null,null,null,null,null,null,null,null,null,null,null,null,null,6,125,21,54,74.25,75]
[null,null,null,null,null,null,null,null,null,null,null,null,null,null,null,7,150,25.2,63,89.1,90]
[null,null,null,null,null,null,null,null,null,null,null,null,null,null,null,8,200,33.6,84,118.8,120]
[null,null,null,null,null,null,null,null,null,null,null,null,null,null,null,9,250,42,93,133.19999999999999,132]
[null,null,null,null,null,null,null,null,null,null,null,null,null,null,null,10,300,51,102,145.19999999999999,144]
[null,null,null,null,null,null,null,null,null,null,null,null,null,null,null,11,350,54,108,157.19999999999999,156]
[null,null,null,null,null,null,null,null,null,null,null,null,null,null,null,12,400,60,117,168,168]
[null,null,null,null,null,null,null,null,null,null,null,null,null,null,null,13,450,63,126,177.6,180]
[null,null,null,null,null,null,null,null,null,null,null,null,null,null,null,14,500,66,132,188.4,192]
[null,null,null,null,null,null,null,null,null,null,null,null,null,null,null,15,600,72,144,236.8,204]
[null,null,null,null,null,null,null,null,null,null,null,null,null,null,null,16,700,78,153,294,222]
[null,null,null,null,null,null,null,null,null,null,null,null,null,null,null,17,800,81,162,336,234]
[null,null,null,null,null,null,null,null,null,null,null,null,null,null,null,18,900,87,174,378,252]
[null,null,null,null,null,null,null,null,null,null,null,null,null,null,null,19,1000,90,180,420,264]
[null,null,null,null,null,null,null,null,null,null,null,null,null,null,null,20,1100,93,212.67,462,276]
[null,null,null,null,null,null,null,null,null,null,null,null,null,null,null,21,1200,99,232,504,288]
[null,null,null,null,null,null,null,null,null,null,null,null,null,null,null,22,1400,105,270.67,588,300]
[null,null,null,null,null,null,null,null,null,null,null,null,null,null,null,23,1600,111,309.33999999999997,672,312]
[null,null,null,null,null,null,null,null,null,null,null,null,null,null,null,24,1800,117,348.01,756,372]
[null,null,null,null,null,null,null,null,null,null,null,null,null,null,null,25,2000,126,386.68,840,414]
[null,null,null,null,null,null,null,null,null,null,null,null,null,null,null,null,"ДИАМЕТР22"]
[]
[]
[null,null,null,"Потери воды при транспортировке потребителям"]
[]
[null,null,null,"№","Наименование участка","Показатели","Ед. изм.","Факт","Факт","Ожидаемый факт","План ОКК","План регулятора"]
[null,null,null,null,null,null,null,{"$f":"god-3","v":-3},{"$f":"god-2","v":-2},{"$f":"god-1","v":-1},{"$f":"god","v":0},{"$f":"god","v":0}]
[]
[null,null,null,null,null,"Потери воды при транспортировке потребителям","кг",{"$f":"H41*SUMIF($F42:$F43,\"произведение i-ой протяженности и нормы\",H42:H43)","v":0},{"$f":"I41*SUMIF($F42:$F43,\"произведение i-ой протяженности и нормы\",I42:I43)","v":0},{"$f":"J41*SUMIF($F42:$F43,\"произведение i-ой протяженности и нормы\",J42:J43)","v":0},{"$f":"K41*SUMIF($F42:$F43,\"произведение i-ой протяженности и нормы\",K42:K43)","v":0},{"$f":"L41*SUMIF($F42:$F43,\"произведение i-ой протяженности и нормы\",L42:L43)","v":0}]
[null,null,null,null,null,"годовое время пребывания воды в трубопроводе","час"]
[null,null,null,0]
[null,null,null,null,"Добавить участок"]

{"sheet":"ПОТЕРИ_РЧВ_ТР","index":30,"n_rows":11,"n_cols":12,"rows_kept":11,"cut":false,"hidden":false,"merged":[[5,6,6,6],[0,3,0,11],[8,3,8,4],[3,3,3,5],[5,3,6,3],[5,4,6,4],[5,5,6,5]]}
[null,null,null,"Приложение 2"]
[]
[]
[null,null,null,"Убыль воды при хранении в РЧВ, размещенных в водопроводных сетях"]
[]
[null,null,null,"№","Наименование РВЧ","Показатели","Ед. изм.","Факт","Факт","Ожидаемый факт","План ОКК","План регулятора"]
[null,null,null,null,null,null,null,{"$f":"god-3","v":-3},{"$f":"god-2","v":-2},{"$f":"god-1","v":-1},{"$f":"god","v":0},{"$f":"god","v":0}]
[]
[null,null,null,null,null,"Убыль воды при хранении в РЧВ, размещенных в водопроводных сетях","кг",{"$f":"SUMIF($F10:$F11,\"потери воды за счет естественной убыли в  i-ом РЧВ, размещенным в водопроводных сетях\",H10:H11)","v":0},{"$f":"SUMIF($F10:$F11,\"потери воды за счет естественной убыли в  i-ом РЧВ, размещенным в водопроводных сетях\",I10:I11)","v":0},{"$f":"SUMIF($F10:$F11,\"потери воды за счет естественной убыли в  i-ом РЧВ, размещенным в водопроводных сетях\",J10:J11)","v":0},{"$f":"SUMIF($F10:$F11,\"потери воды за счет естественной убыли в  i-ом РЧВ, размещенным в водопроводных сетях\",K10:K11)","v":0},{"$f":"SUMIF($F10:$F11,\"потери воды за счет естественной убыли в  i-ом РЧВ, размещенным в водопроводных сетях\",L10:L11)","v":0}]
[null,null,null,0]
[null,null,null,null,"Добавить РЧВ"]

{"sheet":"Комментарии","index":31,"n_rows":7,"n_cols":4,"rows_kept":7,"cut":false,"hidden":false,"merged":[]}
[]
[]
[]
[]
[]
[]
[null,null,null,"Комментарии"]

{"sheet":"Проверка","index":32,"n_rows":4,"n_cols":5,"rows_kept":4,"cut":false,"hidden":false,"merged":[[1,1,1,4]]}
[]
[null,"Результат проверки"]
[]
[null,"Ссылка 1","Ссылка 2","Причина","Статус"]

{"sheet":"TEHSHEET","index":33,"n_rows":87,"n_cols":6,"rows_kept":87,"cut":false,"hidden":true,"merged":[]}
["REGION","obj_num","year_list","logical","list_month","tariff_type"]
["Алтайский край",145,2016,"Да","январь","Питьевая вода"]
["Амурская область",null,2017,"Нет","февраль","Техническая вода"]
["Архангельская область",null,2018,null,"март","Транспортировка воды"]
["Астраханская область",null,2019,null,"апрель","Подвоз воды"]
["Белгородская область",null,2020,null,"май"]
["Брянская область",null,2021,null,"июнь"]
["Владимирская область",null,2022,null,"июль"]
["Волгоградская область",null,null,null,"август"]
["Вологодская область",null,null,null,"сентябрь"]
["Воронежская область",null,null,null,"октябрь"]
["г.Байконур",null,null,null,"ноябрь"]
["г. Москва",null,null,null,"декабрь"]
["г.Санкт-Петербург"]
["г.Севастополь"]
["Еврейская автономная область"]
["Забайкальский край"]
["Ивановская область"]
["Иркутская область"]
["Кабардино-Балкарская республика"]
["Калининградская область"]
["Калужская область"]
["Камчатский край"]
["Карачаево-Черкесская республика"]
["Кемеровская область"]
["Кировская область"]
["Костромская область"]
["Краснодарский край"]
["Красноярский край"]
["Курганская область"]
["Курская область"]
["Ленинградская область"]
["Липецкая область"]
["Магаданская область"]
["Московская область"]
["Мурманская область"]
["Ненецкий автономный округ"]
["Нижегородская область"]
["Новгородская область"]
["Новосибирская область"]
["Омская область"]
["Оренбургская область"]
["Орловская область"]
["Пензенская область"]
["Пермский край"]
["Приморский край"]
["Псковская область"]
["Республика Адыгея"]
["Республика Алтай"]
["Республика Башкортостан"]
["Республика Бурятия"]
["Республика Дагестан"]
["Республика Ингушетия"]
["Республика Калмыкия"]
["Республика Карелия"]
["Республика Коми"]
["Республика Крым"]
["Республика Марий Эл"]
["Республика Мордовия"]
["Республика Саха (Якутия)"]
["Республика Северная Осетия-Алания"]
["Республика Татарстан"]
["Республика Тыва"]
["Республика Хакасия"]
["Ростовская область"]
["Рязанская область"]
["Самарская область"]
["Саратовская область"]
["Сахалинская область"]
["Свердловская область"]
["Смоленская область"]
["Ставропольский край"]
["Тамбовская область"]
["Тверская область"]
["Томская область"]
["Тульская область"]
["Тюменская область"]
["Удмуртская республика"]
["Ульяновская область"]
["Хабаровский край"]
["Ханты-Мансийский автономный округ"]
["Челябинская область"]
["Чеченская республика"]
["Чувашская республика"]
["Чукотский автономный округ"]
["Ямало-Ненецкий автономный округ"]
["Ярославская область"]

{"sheet":"modCheckCyan","index":34,"n_rows":2,"n_cols":1,"rows_kept":2,"cut":false,"hidden":true,"merged":[]}
[{"$f":"IF(ТРЕЩ!#REF!=\"\",1,0)","v":{"$error":"#REF!"}}]
[{"$f":"IF(СВИЩ!#REF!=\"\",1,0)","v":{"$error":"#REF!"}}]

{"sheet":"modProvGeneralProc","index":35,"n_rows":0,"n_cols":0,"rows_kept":0,"cut":false,"hidden":true,"merged":[]}

{"sheet":"modReestr","index":36,"n_rows":5,"n_cols":3,"rows_kept":5,"cut":false,"hidden":true,"merged":[]}
["DATA_URL"]
["https://tarif.lenreg.ru/procwsxls/"]
["LINK_RANGE"]
["ID","LINK_NAME","REGION"]
["64277733","https://tarif.lenreg.ru/disclo/get_file?p_guid=????????-????-????-????-????????????","Ленинградская область"]

{"sheet":"AllSheetsInThisWorkbook","index":37,"n_rows":46,"n_cols":2,"rows_kept":46,"cut":false,"hidden":true,"merged":[]}
["Расчетные листы","Скрытые листы"]
["Инструкция","modList03"]
["Лог обновления","modProv"]
["Титульный","et_union"]
["СВОД","нормы"]
["ПР-ВО","TEHSHEET"]
["ПРОЧ.ТЕХ","modCheckCyan"]
["СБРОС","modProvGeneralProc"]
["ПРОМЫВ","modReestr"]
["ДЕЗИНФ","AllSheetsInThisWorkbook"]
["ХОЗ-БЫТ_ДО","modHTTP"]
["ПОТЕРИ_ЕСТ","modIHLCommandBar"]
["ПОТЕРИ_РЧВ","modInstruction"]
["ПОТЕРИ_ТР","modfrmURL"]
["СКР_УТЕЧ","modfrmRegion"]
["ТРАНСП","modfrmSecretCode"]
["ПРОМЫВ_СЕТЬ","modfrmCheckUpdates"]
["ДЕЗИНФ_СЕТЬ","modClassifierValidate"]
["ЧИСТ_РЕЗ","REESTR_MO"]
["СБРОС_ТРУБ","REESTR_ORG"]
["ПРОБА_ТРУБ","modfrmReestr"]
["ПОЖАР","modHyp"]
["ХОЗ-БЫТ_ПОСЛЕ","modUpdTemplMain"]
["СВИЩ","modfrmListObject"]
["ТРЕЩ","modThisWorkbook"]
["РАЗРЫВ","modList00"]
["ПОТЕРИ_ТРАНСП","modList02"]
["ПОТЕРИ_РЧВ_ТР","modList04"]
["Комментарии","modList07"]
["Проверка","modList09"]
[null,"modList10"]
[null,"modList13"]
[null,"modList15"]
[null,"modList17"]
[null,"modList16"]
[null,"modList18"]
[null,"modList19"]
[null,"modList20"]
[null,"modList21"]
[null,"modList22"]
[null,"modList23"]
[null,"modList24"]
[null,"modList05"]
[null,"modList06"]
[null,"modList12"]
[null,"modCommonProc"]

{"sheet":"modHTTP","index":38,"n_rows":0,"n_cols":0,"rows_kept":0,"cut":false,"hidden":true,"merged":[]}

{"sheet":"modIHLCommandBar","index":39,"n_rows":0,"n_cols":0,"rows_kept":0,"cut":false,"hidden":true,"merged":[]}

{"sheet":"modInstruction","index":40,"n_rows":0,"n_cols":0,"rows_kept":0,"cut":false,"hidden":true,"merged":[]}

{"sheet":"modfrmURL","index":41,"n_rows":0,"n_cols":0,"rows_kept":0,"cut":false,"hidden":true,"merged":[]}

{"sheet":"modfrmRegion","index":42,"n_rows":0,"n_cols":0,"rows_kept":0,"cut":false,"hidden":true,"merged":[]}

{"sheet":"modfrmSecretCode","index":43,"n_rows":0,"n_cols":0,"rows_kept":0,"cut":false,"hidden":true,"merged":[]}

{"sheet":"modfrmCheckUpdates","index":44,"n_rows":0,"n_cols":0,"rows_kept":0,"cut":false,"hidden":true,"merged":[]}

{"sheet":"modClassifierValidate","index":45,"n_rows":0,"n_cols":0,"rows_kept":0,"cut":false,"hidden":true,"merged":[]}

{"sheet":"REESTR_MO","index":46,"n_rows":206,"n_cols":5,"rows_kept":206,"cut":false,"hidden":true,"merged":[]}
["MR_NAME","MO_NAME","OKTMO_NAME","MR_LIST"]
["Бокситогорский муниципальный район","Бокситогорский муниципальный район","41603000","Бокситогорский муниципальный район","MO_LIST_1"]
["Бокситогорский муниципальный район","Бокситогорское","41603101","Волосовский муниципальный район","MO_LIST_2"]
["Бокситогорский муниципальный район","Большедворское","41603412","Волховский муниципальный район","MO_LIST_3"]
["Бокситогорский муниципальный район","Борское","41603416","Всеволожский муниципальный район","MO_LIST_4"]
["Бокситогорский муниципальный район","Ефимовское","41603155","Выборгский муниципальный район","MO_LIST_5"]
["Бокситогорский муниципальный район","Лидское","41603460","Гатчинский муниципальный район","MO_LIST_6"]
["Бокситогорский муниципальный район","Пикалевское","41603102","Кингисеппский муниципальный район","MO_LIST_7"]
["Бокситогорский муниципальный район","Самойловское","41603476","Киришский муниципальный район","MO_LIST_8"]
["Волосовский муниципальный район","Бегуницкое","41606404","Кировский муниципальный район","MO_LIST_9"]
["Волосовский муниципальный район","Большеврудское","41606412","Лодейнопольский муниципальный район","MO_LIST_10"]
["Волосовский муниципальный район","Волосовский муниципальный район","41606000","Ломоносовский муниципальный район","MO_LIST_11"]
["Волосовский муниципальный район","Волосовское","41606101","Лужский муниципальный район","MO_LIST_12"]
["Волосовский муниципальный район","Калитинское","41606420","Подпорожский муниципальный район","MO_LIST_13"]
["Волосовский муниципальный район","Клопицкое","41606430","Приозерский муниципальный район","MO_LIST_14"]
["Волосовский муниципальный район","Рабитицское","41606408","Сланцевский муниципальный район","MO_LIST_15"]
["Волосовский муниципальный район","Сабское","41606436","Сосновоборский городской округ","MO_LIST_16"]
["Волховский муниципальный район","Бережковское","41609453","Тихвинский муниципальный район","MO_LIST_17"]
["Волховский муниципальный район","Волховский муниципальный район","41609000","Тосненский муниципальный район","MO_LIST_18"]
["Волховский муниципальный район","Волховское","41609101"]
["Волховский муниципальный район","Вындиноостровское","41609403"]
["Волховский муниципальный район","Иссадское","41609418"]
["Волховский муниципальный район","Кисельнинское","41609471"]
["Волховский муниципальный район","Колчановское","41609427"]
["Волховский муниципальный район","Новоладожское","41609104"]
["Волховский муниципальный район","Пашское","41609444"]
["Волховский муниципальный район","Потанинское","41609450"]
["Волховский муниципальный район","Свирицкое","41609480"]
["Волховский муниципальный район","Селивановское","41609461"]
["Волховский муниципальный район","Староладожское","41609462"]
["Волховский муниципальный район","Сясьстройское","41609108"]
["Волховский муниципальный район","Усадищенское","41609465"]
["Волховский муниципальный район","Хваловское","41609468"]
["Всеволожский муниципальный район","Агалатовское","41612408"]
["Всеволожский муниципальный район","Бугровское","41612402"]
["Всеволожский муниципальный район","Всеволожский муниципальный район","41612000"]
["Всеволожский муниципальный район","Всеволожское","41612101"]
["Всеволожский муниципальный район","Дубровское","41612154"]
["Всеволожский муниципальный район","Заневское","41612155"]
["Всеволожский муниципальный район","Колтушское","41612416"]
["Всеволожский муниципальный район","Кузьмоловское","41612158"]
["Всеволожский муниципальный район","Куйвозовское","41612420"]
["Всеволожский муниципальный район","Лесколовское","41612424"]
["Всеволожский муниципальный район","Морозовское","41612163"]
["Всеволожский муниципальный район","Муринское","41612103"]
["Всеволожский муниципальный район","Новодевяткинское","41612458"]
["Всеволожский муниципальный район","Рахьинское","41612167"]
["Всеволожский муниципальный район","Романовское","41612442"]
["Всеволожский муниципальный район","Свердловское","41612168"]
["Всеволожский муниципальный район","Сертоловское","41612102"]
["Всеволожский муниципальный район","Токсовское","41612175"]
["Всеволожский муниципальный район","Щегловское","41612448"]
["Всеволожский муниципальный район","Юкковское","41612456"]
["Выборгский муниципальный район","Выборгский муниципальный район","41615000"]
["Выборгский муниципальный район","Выборгское","41615101"]
["Выборгский муниципальный район","Высоцкое","41615104"]
["Выборгский муниципальный район","Гончаровское","41615492"]
["Выборгский муниципальный район","Каменногорское","41615106"]
["Выборгский муниципальный район","Красносельское","41615436"]
["Выборгский муниципальный район","Первомайское","41615460"]
["Выборгский муниципальный район","Полянское","41615464"]
["Выборгский муниципальный район","Приморское","41615108"]
["Выборгский муниципальный район","Рощинское","41615158"]
["Выборгский муниципальный район","Светогорское","41615114"]
["Выборгский муниципальный район","Селезневское","41615476"]
["Выборгский муниципальный район","Советское","41615163"]
["Гатчинский муниципальный район","Большеколпанское","41618408"]
["Гатчинский муниципальный район","Веревское","41618416"]
["Гатчинский муниципальный район","Войсковицкое","41618418"]
["Гатчинский муниципальный район","Вырицкое","41618154"]
["Гатчинский муниципальный район","Гатчинский муниципальный район","41618000"]
["Гатчинский муниципальный район","Гатчинское","41618101"]
["Гатчинский муниципальный район","Дружногорское","41618156"]
["Гатчинский муниципальный район","Елизаветинское","41618424"]
["Гатчинский муниципальный район","Кобринское","41618426"]
["Гатчинский муниципальный район","Коммунарское","41618105"]
["Гатчинский муниципальный район","Новосветское","41618444"]
["Гатчинский муниципальный район","Пудомягское","41618404"]
["Гатчинский муниципальный район","Пудостьское","41618448"]
["Гатчинский муниципальный район","Рождественское","41618452"]
["Гатчинский муниципальный район","Сиверское","41618169"]
["Гатчинский муниципальный район","Сусанинское","41618460"]
["Гатчинский муниципальный район","Сяськелевское","41618461"]
["Гатчинский муниципальный район","Тайцкое","41618176"]
["Кингисеппский муниципальный район","Большелуцкое","41621404"]
["Кингисеппский муниципальный район","Вистинское","41621452"]
["Кингисеппский муниципальный район","Ивангородское","41621102"]
["Кингисеппский муниципальный район","Кингисеппский муниципальный район","41621000"]
["Кингисеппский муниципальный район","Кингисеппское","41621101"]
["Кингисеппский муниципальный район","Котельское","41621420"]
["Кингисеппский муниципальный район","Куземкинское","41621432"]
["Кингисеппский муниципальный район","Нежновское","41621440"]
["Кингисеппский муниципальный район","Опольевское","41621444"]
["Кингисеппский муниципальный район","Пустомержское","41621448"]
["Кингисеппский муниципальный район","Усть-Лужское","41621428"]
["Кингисеппский муниципальный район","Фалилеевское","41621412"]
["Киришский муниципальный район","Будогощское","41624152"]
["Киришский муниципальный район","Глажевское","41624412"]
["Киришский муниципальный район","Киришский муниципальный район","41624000"]
["Киришский муниципальный район","Киришское","41624101"]
["Киришский муниципальный район","Кусинское","41624423"]
["Киришский муниципальный район","Пчевжинское","41624427"]
["Киришский муниципальный район","Пчевское","41624428"]
["Кировский муниципальный район","Кировский муниципальный район","41625000"]
["Кировский муниципальный район","Кировское","41625101"]
["Кировский муниципальный район","Мгинское","41625154"]
["Кировский муниципальный район","Назиевское","41625156"]
["Кировский муниципальный район","Отрадненское","41625104"]
["Кировский муниципальный район","Павловское","41625158"]
["Кировский муниципальный район","Приладожское","41625160"]
["Кировский муниципальный район","Путиловское","41625440"]
["Кировский муниципальный район","Синявинское","41625163"]
["Кировский муниципальный район","Суховское","41625445"]
["Кировский муниципальный район","Шлиссельбургское","41625102"]
["Кировский муниципальный район","Шумское","41625450"]
["Лодейнопольский муниципальный район","Алеховщинское","41627404"]
["Лодейнопольский муниципальный район","Доможировское","41627410"]
["Лодейнопольский муниципальный район","Лодейнопольский муниципальный район","41627000"]
["Лодейнопольский муниципальный район","Лодейнопольское","41627101"]
["Лодейнопольский муниципальный район","Свирьстройское","41627154"]
["Лодейнопольский муниципальный район","Янегское","41627420"]
["Ломоносовский муниципальный район","Аннинское","41630152"]
["Ломоносовский муниципальный район","Большеижорское","41630154"]
["Ломоносовский муниципальный район","Виллозское","41630157"]
["Ломоносовский муниципальный район","Горбунковское","41630424"]
["Ломоносовский муниципальный район","Гостилицкое","41630420"]
["Ломоносовский муниципальный район","Кипенское","41630428"]
["Ломоносовский муниципальный район","Копорское","41630432"]
["Ломоносовский муниципальный район","Лаголовское","41630434"]
["Ломоносовский муниципальный район","Лебяженское","41630162"]
["Ломоносовский муниципальный район","Ломоносовский муниципальный район","41630000"]
["Ломоносовский муниципальный район","Лопухинское","41630436"]
["Ломоносовский муниципальный район","Низинское","41630408"]
["Ломоносовский муниципальный район","Оржицкое","41630438"]
["Ломоносовский муниципальный район","Пениковское","41630412"]
["Ломоносовский муниципальный район","Ропшинское","41630440"]
["Ломоносовский муниципальный район","Русско-Высоцкое","41630444"]
["Лужский муниципальный район","Володарское","41633408"]
["Лужский муниципальный район","Волошовское","41633416"]
["Лужский муниципальный район","Дзержинское","41633420"]
["Лужский муниципальный район","Заклинское","41633436"]
["Лужский муниципальный район","Лужский муниципальный район","41633000"]
["Лужский муниципальный район","Лужское","41633101"]
["Лужский муниципальный район","Мшинское","41633440"]
["Лужский муниципальный район","Оредежское","41633444"]
["Лужский муниципальный район","Осьминское","41633448"]
["Лужский муниципальный район","Ретюнское","41633488"]
["Лужский муниципальный район","Серебрянское","41633464"]
["Лужский муниципальный район","Скребловское","41633468"]
["Лужский муниципальный район","Толмачевское","41633154"]
["Лужский муниципальный район","Торковичское","41633478"]
["Лужский муниципальный район","Ям-Тесовское","41633456"]
["Подпорожский муниципальный район","Важинское","41636154"]
["Подпорожский муниципальный район","Винницкое","41636404"]
["Подпорожский муниципальный район","Вознесенское","41636158"]
["Подпорожский муниципальный район","Никольское","41636163"]
["Подпорожский муниципальный район","Подпорожский муниципальный район","41636000"]
["Подпорожский муниципальный район","Подпорожское","41636101"]
["Приозерский муниципальный район","Громовское","41639412"]
["Приозерский муниципальный район","Запорожское","41639416"]
["Приозерский муниципальный район","Красноозерное","41639420"]
["Приозерский муниципальный район","Кузнечнинское","41639154"]
["Приозерский муниципальный район","Ларионовское","41639424"]
["Приозерский муниципальный район","Мельниковское","41639428"]
["Приозерский муниципальный район","Мичуринское","41639432"]
["Приозерский муниципальный район","Петровское","41639440"]
["Приозерский муниципальный район","Плодовское","41639436"]
["Приозерский муниципальный район","Приозерский муниципальный район","41639000"]
["Приозерский муниципальный район","Приозерское","41639101"]
["Приозерский муниципальный район","Раздольевское","41639408"]
["Приозерский муниципальный район","Ромашкинское","41639434"]
["Приозерский муниципальный район","Севастьяновское","41639404"]
["Приозерский муниципальный район","Сосновское","41639444"]
["Сланцевский муниципальный район","Выскатское","41642404"]
["Сланцевский муниципальный район","Гостицкое","41642424"]
["Сланцевский муниципальный район","Загривское","41642408"]
["Сланцевский муниципальный район","Новосельское","41642420"]
["Сланцевский муниципальный район","Сланцевский муниципальный район","41642000"]
["Сланцевский муниципальный район","Сланцевское","41642101"]
["Сланцевский муниципальный район","Старопольское","41642436"]
["Сланцевский муниципальный район","Черновское","41642440"]
["Сосновоборский городской округ","Сосновоборский городской округ","41754000"]
["Тихвинский муниципальный район","Борское","41645410"]
["Тихвинский муниципальный район","Ганьковское","41645412"]
["Тихвинский муниципальный район","Горское","41645416"]
["Тихвинский муниципальный район","Коськовское","41645472"]
["Тихвинский муниципальный район","Мелегежское","41645408"]
["Тихвинский муниципальный район","Пашозерское","41645456"]
["Тихвинский муниципальный район","Тихвинский муниципальный район","41645000"]
["Тихвинский муниципальный район","Тихвинское","41645101"]
["Тихвинский муниципальный район","Цвылевское","41645432"]
["Тихвинский муниципальный район","Шугозерское","41645477"]
["Тосненский муниципальный район","Красноборское","41648154"]
["Тосненский муниципальный район","Лисинское","41648430"]
["Тосненский муниципальный район","Любанское","41648105"]
["Тосненский муниципальный район","Никольское","41648108"]
["Тосненский муниципальный район","Нурминское","41648418"]
["Тосненский муниципальный район","Рябовское","41648160"]
["Тосненский муниципальный район","Тельмановское","41648443"]
["Тосненский муниципальный район","Тосненский муниципальный район","41648000"]
["Тосненский муниципальный район","Тосненское","41648101"]
["Тосненский муниципальный район","Трубникоборское","41648444"]
["Тосненский муниципальный район","Ульяновское","41648164"]
["Тосненский муниципальный район","Фёдоровское","41648165"]
["Тосненский муниципальный район","Форносовское","41648170"]
["Тосненский муниципальный район","Шапкинское","41648464"]

{"sheet":"REESTR_ORG","index":47,"n_rows":186,"n_cols":7,"rows_kept":186,"cut":false,"hidden":true,"merged":[]}
["NSRF","RST_ORG_ID","ORG_NAME","INN_NAME","KPP_NAME","VDET_NAME",{"$error":"#N/A"}]
["Ленинградская область","26373254","МУП \"Путилово ЖКХ\"","4706025188","470601001","Оказание услуг в сфере водоснабжения и очистки сточных вод","VS"]
["Ленинградская область","26373258","ООО \"Водоканал птицефабрики Синявинская\"","4706027594","470601001","Оказание услуг в сфере водоснабжения и очистки сточных вод","VS"]
["Ленинградская область","26373306","АО \"ГАТЧИНСКИЙ ККЗ\"","4719000303","470501001","Оказание услуг в сфере водоснабжения и очистки сточных вод","VS"]
["Ленинградская область","26373310","ГБДОУ \"Детский оздоровительный городок \"Малыш\"","4719007588","470501001","Оказание услуг в сфере водоснабжения и очистки сточных вод","VS"]
["Ленинградская область","26524169","МУП \"Тепловые сети\" г. Гатчина","4705014698","470501001","Оказание услуг в сфере водоснабжения","VS"]
["Ленинградская область","26524292","АО \"Нева Энергия\"","7802312374","471302001","Оказание услуг в сфере водоснабжения","VS"]
["Ленинградская область","26604613","АО \"Компания Усть-Луга\"","4707005410","771401001","Оказание услуг в сфере водоснабжения","VS"]
["Ленинградская область","26769187","Федоровское МУП ЖКХ, инженерных коммуникаций и благоустройства","4716025317","471601001","Оказание услуг в сфере водоснабжения и очистки сточных вод","VS"]
["Ленинградская область","27883622","МУКП \"Свердловские коммунальные системы\"","4703128682","470301001","Оказание услуг в сфере водоснабжения и очистки сточных вод","VS"]
["Ленинградская область","27943060","МУП \"Северное Cияние\"","4706033397","470601001","Оказание услуг в сфере водоснабжения и очистки сточных вод","VS"]
["Ленинградская область","28016967","ООО \"Лемэк\"","7801213324","472501001","Оказание услуг в сфере водоснабжения и очистки сточных вод","VS"]
["Ленинградская область","28155784","ООО \"КУДРОВО-ГРАД\"","4703091016","470301001","Оказание услуг в сфере водоснабжения и очистки сточных вод","VS"]
["Ленинградская область","31007537","ООО УК \"Новоантропшино\"","4705063960","470501001","Оказание услуг в сфере водоснабжения","VS"]
["Ленинградская область","31309581","ГУП ЛО \"Водоканал Тельмана\"","4716044937","471601001","Оказание услуг в сфере водоснабжения","VS"]
["Ленинградская область","31341205","ООО \"РСТИ-Сертолово\"","4703136228","470301001","Оказание услуг в сфере водоснабжения","VS"]
["Ленинградская область","31449448","ООО \"Водоканал\"","4726003577","472601001","Оказание услуг в сфере водоснабжения и очистки сточных вод","VS"]
["Ленинградская область","26373270","ЗАО \"Завод ВНИИЗЕММАШ\"","4712017964","471201001","Оказание услуг в сфере водоснабжения","VS"]
["Ленинградская область","26506539","АО \"Концерн Росэнергоатом\" филиал \"Ленинградская атомная станция\"","7721632827","472643001","Оказание услуг в сфере водоснабжения и очистки сточных вод","VS"]
["Ленинградская область","26524163","ЗАО \"Интернешнл Пейпер\"","4704012472","470401001","Оказание услуг в сфере водоснабжения и очистки сточных вод","VS"]
["Ленинградская область","28048642","ООО \"ГРАНД\"","4714017430","472601001","Оказание услуг в сфере водоснабжения","VS"]
["Ленинградская область","28139848","ООО \"ПГ \"Фосфорит\"","4707017905","660850001","Оказание услуг в сфере водоснабжения","VS"]
["Ленинградская область","28813153","МП \"ТеплоРесурс\" МО Кузнечнинское ГП","4712025919","471201001","Оказание услуг в сфере водоснабжения и очистки сточных вод","VS"]
["Ленинградская область","28968332","ООО \"Новая Водная Ассоциация\"","7801426040","780101001","Оказание услуг в сфере водоснабжения и очистки сточных вод","VS"]
["Ленинградская область","30794671","ГКУЗ ЛО \"ДПБ\"","4719005020","470501001","Оказание услуг в сфере водоснабжения","VS"]
["Ленинградская область","30941480","Филиал ФГБУ \"ЦЖКУ\" Минобороны России по ЗВО","7729314745","784243001","Оказание услуг в сфере водоснабжения и очистки сточных вод","VS"]
["Ленинградская область","31310510","ООО \"ВОДОСФЕРА\"","4704104532","470401001","Оказание услуг в сфере водоснабжения","VS"]
["Ленинградская область","26373246","МУП \"Водоканал\" г. Гатчина","4705014708","470501001","Оказание услуг в сфере водоснабжения и очистки сточных вод","VS"]
["Ленинградская область","26380420","Филиал \"Невский водопровод\" АО \"ЛОКС\"","4705029366","781703001","Оказание услуг в сфере водоснабжения","VS"]
["Ленинградская область","26380426","АО \"Птицефабрика Северная\"","4706002688","470601001","Оказание услуг в сфере водоснабжения и очистки сточных вод","VS"]
["Ленинградская область","26523683","АО \"ЛОТЭК\"","4716028445","470701001","Оказание услуг в сфере водоснабжения","VS"]
["Ленинградская область","26523713","ООО \"ПГЛЗ\"","4715030610","471501001","Оказание услуг в сфере водоснабжения и очистки сточных вод","VS"]
["Ленинградская область","26640639","ООО \"КСК\"","4708021189","472701001","Оказание услуг в сфере водоснабжения и очистки сточных вод","VS"]
["Ленинградская область","28442757","ООО \"ЭкоСервис\"","4705050914","470501001","Оказание услуг в сфере водоснабжения и очистки сточных вод","VS"]
["Ленинградская область","28443585","ООО \"УЛВК\"","4707035319","470701001","Оказание услуг в сфере водоснабжения и очистки сточных вод","VS"]
["Ленинградская область","28872309","ООО \"ПЛЕМЕННОЙ ЗАВОД \"НОВОЛАДОЖСКИЙ\"","4702017549","470201001","Оказание услуг в сфере водоснабжения","VS"]
["Ленинградская область","30872321","МКП \"УКС\" МО\"НОВОДЕВЯТКИНСКОЕ СЕЛЬСКОЕ ПОСЕЛЕНИЕ\" ВМР ЛО","4703147050","470301001","Оказание услуг в сфере водоснабжения","VS"]
["Ленинградская область","31256481","ГУП ЛО \"Павловожилкомхоз\"","4706025220","470601001","Оказание услуг в сфере водоснабжения и очистки сточных вод","VS"]
["Ленинградская область","31308465","ВФ АО \"Апатит\"","5103070023","470243001","Оказание услуг в сфере водоснабжения","VS"]
["Ленинградская область","31323956","АО \"ВКХ\"","4703165123","470301001","Оказание услуг в сфере водоснабжения и очистки сточных вод","VS"]
["Ленинградская область","31423466","ООО \"Коммунальные ресурсы\"","7813630668","781301001","Транспортировка воды","VS"]
["Ленинградская область","31456824","ООО \"АВАНГАРД\"","7810799144","781001001","Оказание услуг в сфере водоснабжения","VS"]
["Ленинградская область","26373296","ФКУ ИК-2 УФСИН России по С-Пб и ЛО","4716000986","471601001","Оказание услуг в сфере водоснабжения и очистки сточных вод","VS"]
["Ленинградская область","26373304","ОАО \"Сясьский целлюлозно-бумажный комбинат\"","4718011856","470201001","Оказание услуг в сфере водоснабжения","VS"]
["Ленинградская область","26375635","ООО \"Ольшаники\"","7801079076","470401001","Оказание услуг в сфере водоснабжения и очистки сточных вод","VS"]
["Ленинградская область","26773425","МУП УЖКХ МО ВИЛЛОЗСКОЕ СП","4720024228","472501001","Оказание услуг в сфере водоснабжения и очистки сточных вод","VS"]
["Ленинградская область","28534868","ООО \"УК \"Мурино\"","7838474259","781301001","Оказание услуг в сфере водоснабжения","VS"]
["Ленинградская область","30881145","ГУП \"ПЕТЕРБУРГСКИЙ МЕТРОПОЛИТЕН \"","7830000970","783801001","Оказание услуг в сфере водоснабжения и очистки сточных вод","VS"]
["Ленинградская область","30950162","ГУП \"Леноблводоканал\"","4703144282","470401001","Оказание услуг в сфере водоснабжения и очистки сточных вод","VS"]
["Ленинградская область","31191414","МУП \"Водоканал г.Каменногорска\"","4704103909","470401001","Оказание услуг в сфере водоснабжения","VS"]
["Ленинградская область","31247312","ГУП ЛО \"Ладожский водовод\"","4703158180","470301001","Оказание услуг в сфере водоснабжения и очистки сточных вод","VS"]
["Ленинградская область","31256290","ООО \"Техническая компания \"Альтернатива\"","7840419463","783901001","Оказание услуг в сфере водоснабжения","VS"]
["Ленинградская область","26373234","ЗАО \"Рощино сельхозтехника\"","4704002153","470401001","Оказание услуг в сфере водоснабжения и очистки сточных вод","VS"]
["Ленинградская область","26373240","ОАО \"Птицефабрика Ударник\"","4704083071","470401001","Оказание услуг в сфере водоснабжения","VS"]
["Ленинградская область","26373248","АО \"Коммунальные системы Гатчинского района\"","4705039967","470501001","Оказание услуг в сфере водоснабжения и очистки сточных вод","VS"]
["Ленинградская область","26380436","ООО\" Ивангородский водоканал\"","4707026586","470701001","Оказание услуг в сфере водоснабжения и очистки сточных вод","VS"]
["Ленинградская область","26422494","ГУП \"Водоканал Санкт-Петербурга\"","7830000426","784201001","Оказание услуг в сфере водоснабжения и очистки сточных вод","VS"]
["Ленинградская область","26424110","ООО \"Газпром трансгаз Санкт-Петербург\"","7805018099","781001001","Оказание услуг в сфере водоснабжения и очистки сточных вод","VS"]
["Ленинградская область","26524185","ООО \"Коммун Энерго\"","4707021122","470701001","Оказание услуг в сфере водоснабжения и очистки сточных вод","VS"]
["Ленинградская область","26639730","ОАО \"Всеволожские тепловые сети\"","4703096470","470301001","Оказание услуг в сфере водоснабжения и очистки сточных вод","VS"]
["Ленинградская область","26814895","ОАО \"РЖД\" (Октябрьская дирекция по тепловодоснабжению - СП Центральной дирекции по тепловодоснабжению - филиала ОАО \"РЖД\")","7708503727","780445015","Оказание услуг в сфере водоснабжения и очистки сточных вод","VS"]
["Ленинградская область","28828801","ООО \"СКС\"","4703141700","470301001","Оказание услуг в сфере водоснабжения и очистки сточных вод","VS"]
["Ленинградская область","28829099","ООО \"МПЗ Русско-Высоцкое\"","7810461098","472501001","Оказание услуг в сфере водоснабжения и очистки сточных вод","VS"]
["Ленинградская область","30914633","ООО \"УК\"Аква-Плюс\"","4703139412","470301001","Оказание услуг в сфере водоснабжения и очистки сточных вод","VS"]
["Ленинградская область","31430605","МУП \"Романовский водоканал\"","4703172650","470301001","Оказание услуг в сфере водоснабжения и очистки сточных вод","VS"]
["Ленинградская область","31479026","ООО \"Акваресурс\"","4704108576","470401001","Оказание услуг в сфере водоснабжения и очистки сточных вод","VS"]
["Ленинградская область","26373257","МУП \"НазияКомСервис\"","4706027280","470601001","Оказание услуг в сфере водоснабжения и очистки сточных вод","VS"]
["Ленинградская область","26524308","ОАО \"Тепловые сети\", г. Тосно","4716024190","471601001","Оказание услуг в сфере водоснабжения и очистки сточных вод","VS"]
["Ленинградская область","26640635","ООО \"СМЭУ Заневка\"","4703116542","470301001","Оказание услуг в сфере водоснабжения и очистки сточных вод","VS"]
["Ленинградская область","27289646","Филиал \"Тосненский водоканал\" АО \"ЛОКС\"","4705029366","471643001","Оказание услуг в сфере водоснабжения и очистки сточных вод","VS"]
["Ленинградская область","27544623","АО \"Птицефабрика Лаголово\"","4720004013","472501001","Оказание услуг в сфере водоснабжения и очистки сточных вод","VS"]
["Ленинградская область","28489933","ООО \"Полар Инвест\"","7806104671","470301001","Оказание услуг в сфере водоснабжения и очистки сточных вод","VS"]
["Ленинградская область","28545782","ООО \"ВОДОКАНАЛ\"","4703137398","470301001","Оказание услуг в сфере водоснабжения и очистки сточных вод","VS"]
["Ленинградская область","28828840","ООО \"Инфраструктура Плюс\"","4712025732","471201001","Оказание услуг в сфере водоснабжения и очистки сточных вод","VS"]
["Ленинградская область","28931605","ООО \"РСО 47\"","4703142599","470301001","Оказание услуг в сфере водоснабжения","VS"]
["Ленинградская область","28967688","Банк России (Оздоровительное объединение \"Зеленый бор\" Центрального банка Российской Федерации)","7702235133","471045002","Оказание услуг в сфере водоснабжения и очистки сточных вод","VS"]
["Ленинградская область","31358350","СПБ ГБУЗ Туберкулезный санаторий \"Сосновый бор\"","4704022897","470401001","Оказание услуг в сфере водоснабжения и очистки сточных вод","VS"]
["Ленинградская область","31443918","ООО \"Прогресс\"","7838092820","783801001","Оказание услуг в сфере водоснабжения","VS"]
["Ленинградская область","26373225","ЗАО \"Агрофирма  \"Выборжец\"","4703006839","470301001","Оказание услуг в сфере водоснабжения","VS"]
["Ленинградская область","26373302","ООО \"Совхоз \"Восточный\"","4716018951","471601001","Оказание услуг в сфере водоснабжения","VS"]
["Ленинградская область","26561755","ОАО \"Кингисеппский Водоканал\"","4707028015","470701001","Оказание услуг в сфере водоснабжения и очистки сточных вод","VS"]
["Ленинградская область","26638805","МП \"ТЭКК\"","4703117909","470301001","Оказание услуг в сфере водоснабжения и очистки сточных вод","VS"]
["Ленинградская область","26638809","МУП \"Бугровские тепловые сети\"","4703103575","470301001","Оказание услуг в сфере водоснабжения","VS"]
["Ленинградская область","26640400","МП \"Северное ремонтно-эксплуатационное предприятие\"","4703064012","470301001","Оказание услуг в сфере водоснабжения и очистки сточных вод","VS"]
["Ленинградская область","26799802","ООО \"Светогорское жилищно-коммунальное хозяйство\"","4704026517","470401001","Оказание услуг в сфере водоснабжения и очистки сточных вод","VS"]
["Ленинградская область","28822195","ООО \"Звезда\"","7813559101","470501001","Оказание услуг в сфере водоснабжения и очистки сточных вод","VS"]
["Ленинградская область","28942511","АО \"НПО \"Поиск\"","4703142849","470301001","Оказание услуг в сфере водоснабжения и очистки сточных вод","VS"]
["Ленинградская область","30366418","ООО \"АКВА-АЛЬЯНС\"","7813574036","781301001","Транспортировка воды","VS"]
["Ленинградская область","30872533","ООО «Водолей»","4707038870","470701001","Оказание услуг в сфере водоснабжения","VS"]
["Ленинградская область","30924547","ООО \"Северо-Запад Инжиниринг\"","4703131332","470301001","Оказание услуг в сфере водоснабжения","VS"]
["Ленинградская область","31208153","АО \"ИЭК\"","4725005187","472501001","Оказание услуг в сфере водоснабжения и очистки сточных вод","VS"]
["Ленинградская область","31391606","АО \"ЕвроХим-СЗ\"","4707036312","660850001","Оказание услуг в сфере водоснабжения","VS"]
["Ленинградская область","26373260","ГУП ЛО «УВКХ»","4708001489","472701001","Оказание услуг в сфере водоснабжения и очистки сточных вод","VS"]
["Ленинградская область","26373316","АО \"Промышленный комплекс \"Энергия\"","4720011010","472501001","Оказание услуг в сфере водоснабжения","VS"]
["Ленинградская область","26523754","ООО \"Флагман\"","7805222344","470301001","Оказание услуг в сфере водоснабжения и очистки сточных вод","VS"]
["Ленинградская область","27677580","ООО \"Выборгская лесопромышленная корпорация\"","4704087728","470401001","Оказание услуг в сфере водоснабжения и очистки сточных вод","VS"]
["Ленинградская область","27796956","ООО «ПетроЗемПроект»","7811346468","781301001","Оказание услуг в сфере водоснабжения и очистки сточных вод","VS"]
["Ленинградская область","27883546","ООО \"ГТМ - теплосервис\"","7810496527","780501001","Оказание услуг в сфере водоснабжения и очистки сточных вод","VS"]
["Ленинградская область","28001460","МУП «Низино»","4720031916","472501001","Оказание услуг в сфере водоснабжения и очистки сточных вод","VS"]
["Ленинградская область","28442803","ООО \"Актион\"","4716038411","471601001","Оказание услуг в сфере водоснабжения и очистки сточных вод","VS"]
["Ленинградская область","29648581","ООО \"ЛОКС\"","4703142729","470301001","Оказание услуг в сфере водоснабжения и очистки сточных вод","VS"]
["Ленинградская область","30388813","МУП \"ВОДОКАНАЛ\"","4715030240","471501001","Оказание услуг в сфере водоснабжения и очистки сточных вод","VS"]
["Ленинградская область","31023489","МУП \"Водоканал Кировского района\"","4706039134","470601001","Оказание услуг в сфере водоснабжения и очистки сточных вод","VS"]
["Ленинградская область","31229826","ООО \"Ладога-Ресурс\"","4703158366","470301001","Оказание услуг в сфере водоснабжения","VS"]
["Ленинградская область","31251220","ГУП «Громовский водоканал»","4712028162","471201001","Оказание услуг в сфере водоснабжения","VS"]
["Ленинградская область","31251515","ГУП «Плодовский водоканал»","4712028170","471201001","Оказание услуг в сфере водоснабжения и очистки сточных вод","VS"]
["Ленинградская область","31270040","ООО \"Интехстрой\"","7801346067","780101001","Оказание услуг в сфере водоснабжения и очистки сточных вод","VS"]
["Ленинградская область","26640400","МП \"Северное ремонтно-эксплуатационное предприятие\"","4703064012","470301001","Оказание услуг в сфере горячего водоснабжения","HOT_VS"]
["Ленинградская область","31007537","ООО УК \"Новоантропшино\"","4705063960","470501001","Оказание услуг в сфере горячего водоснабжения","HOT_VS"]
["Ленинградская область","28001460","МУП «Низино»","4720031916","472501001","Оказание услуг в сфере горячего водоснабжения","HOT_VS"]
["Ленинградская область","28016967","ООО \"Лемэк\"","7801213324","472501001","Оказание услуг в сфере горячего водоснабжения","HOT_VS"]
["Ленинградская область","27517472","ООО \"Энергогазмонтаж\"","7806119950","781301001","Оказание услуг в сфере горячего водоснабжения","HOT_VS"]
["Ленинградская область","28812394","Филиал АО «Газпром теплоэнерго» в Ленинградской области","5003046281","471043001","Оказание услуг в сфере горячего водоснабжения","HOT_VS"]
["Ленинградская область","28932418","ООО \"Жилсервис\"","7843305143","470301001","Оказание услуг в сфере горячего водоснабжения","HOT_VS"]
["Ленинградская область","26523683","АО \"ЛОТЭК\"","4716028445","470701001","Оказание услуг в сфере горячего водоснабжения","HOT_VS"]
["Ленинградская область","30870466","ООО «Ленжилэксплуатация»","7810764455","781001001","Оказание услуг в сфере горячего водоснабжения","HOT_VS"]
["Ленинградская область","30370326","ООО \"Тепло Сервис\"","4703137736","470301001","Оказание услуг в сфере горячего водоснабжения","HOT_VS"]
["Ленинградская область","26561667","МП \"Жилищное хозяйство\"","4708001129","472701001","Оказание услуг в сфере горячего водоснабжения","HOT_VS"]
["Ленинградская область","26361126","ГУП \"ТЭК СПб\"","7830001028","783450001","Оказание услуг в сфере горячего водоснабжения","HOT_VS"]
["Ленинградская область","26638809","МУП \"Бугровские тепловые сети\"","4703103575","470301001","Оказание услуг в сфере горячего водоснабжения","HOT_VS"]
["Ленинградская область","27883622","МУКП \"Свердловские коммунальные системы\"","4703128682","470301001","Оказание услуг в сфере горячего водоснабжения","HOT_VS"]
["Ленинградская область","28813153","МП \"ТеплоРесурс\" МО Кузнечнинское ГП","4712025919","471201001","Оказание услуг в сфере горячего водоснабжения","HOT_VS"]
["Ленинградская область","28545782","ООО \"ВОДОКАНАЛ\"","4703137398","470301001","Оказание услуг в сфере горячего водоснабжения","HOT_VS"]
["Ленинградская область","26523754","ООО \"Флагман\"","7805222344","470301001","Оказание услуг в сфере горячего водоснабжения","HOT_VS"]
["Ленинградская область","28175609","ООО \"Управляющая компания\"Коммунальные сети\"","4707026836","470701001","Оказание услуг в сфере горячего водоснабжения","HOT_VS"]
["Ленинградская область","26524185","ООО \"Коммун Энерго\"","4707021122","470701001","Оказание услуг в сфере горячего водоснабжения","HOT_VS"]
["Ленинградская область","28048616","ООО \"Леноблтеплоснаб\"","7811527520","781101001","Оказание услуг в сфере горячего водоснабжения","HOT_VS"]
["Ленинградская область","31211235","МУП «Теплосеть Сосново»","4712028451","471201001","Оказание услуг в сфере горячего водоснабжения","HOT_VS"]
["Ленинградская область","31444444","ООО «Интера»","7805769183","780501001","Оказание услуг в сфере горячего водоснабжения","HOT_VS"]
["Ленинградская область","26799802","ООО \"Светогорское жилищно-коммунальное хозяйство\"","4704026517","470401001","Оказание услуг в сфере горячего водоснабжения","HOT_VS"]
["Ленинградская область","30940618","ООО \"СТЭК\"","4703142768","470301001","Оказание услуг в сфере горячего водоснабжения","HOT_VS"]
["Ленинградская область","31259501","ООО \"АСТРА\"","4707008146","470701001","Оказание услуг в сфере горячего водоснабжения","HOT_VS"]
["Ленинградская область","28968332","ООО \"Новая Водная Ассоциация\"","7801426040","780101001","Оказание услуг в сфере горячего водоснабжения","HOT_VS"]
["Ленинградская область","30794671","ГКУЗ ЛО \"ДПБ\"","4719005020","470501001","Оказание услуг в сфере горячего водоснабжения","HOT_VS"]
["Ленинградская область","29649769","ООО \"Дубровская ТЭЦ\"","4706036863","470601001","Оказание услуг в сфере горячего водоснабжения","HOT_VS"]
["Ленинградская область","26539356","ПАО \"ТГК-1\" филиал \"Невский\"","7841312071","781301001","Оказание услуг в сфере горячего водоснабжения","HOT_VS"]
["Ленинградская область","28967688","Банк России (Оздоровительное объединение \"Зеленый бор\" Центрального банка Российской Федерации)","7702235133","471045002","Поставка горячей воды","HOT_VS"]
["Ленинградская область","30795556","ООО \"ЛЕНТЕПЛО\"","7802566770","780201001","Оказание услуг в сфере горячего водоснабжения","HOT_VS"]
["Ленинградская область","27883558","ООО «ТК Северная»","4703123451","470301001","Оказание услуг в сфере горячего водоснабжения","HOT_VS"]
["Ленинградская область","31435482","МУП «Мгинские тепловые сети»","4706041648","470601001","Оказание услуг в сфере горячего водоснабжения","HOT_VS"]
["Ленинградская область","31342373","Филиал АО \"Нева Энергия\"","7802312374","471543001","Оказание услуг в сфере горячего водоснабжения","HOT_VS"]
["Ленинградская область","26583421","СМУП \"ТСП\"","4714014006","472601001","Оказание услуг в сфере горячего водоснабжения","HOT_VS"]
["Ленинградская область","28504079","МП МО город Коммунар \"ЖКС\"","4705062476","470501001","Оказание услуг в сфере горячего водоснабжения","HOT_VS"]
["Ленинградская область","26523762","АО \"Выборгтеплоэнерго\"","4704062064","470401001","Оказание услуг в сфере горячего водоснабжения","HOT_VS"]
["Ленинградская область","26524308","ОАО \"Тепловые сети\", г. Тосно","4716024190","471601001","Оказание услуг в сфере горячего водоснабжения","HOT_VS"]
["Ленинградская область","30384822","АО \"ПТС\"","4715030160","471501001","Оказание услуг в сфере горячего водоснабжения","HOT_VS"]
["Ленинградская область","28829326","ООО \"ПАРИТЕТЪ\"","4712026119","471201001","Оказание услуг в сфере горячего водоснабжения","HOT_VS"]
["Ленинградская область","31354893","ООО \"УК \"Алгоритм\"","7802655830","780201001","Оказание услуг в сфере горячего водоснабжения","HOT_VS"]
["Ленинградская область","26373248","АО \"Коммунальные системы Гатчинского района\"","4705039967","470501001","Оказание услуг в сфере горячего водоснабжения","HOT_VS"]
["Ленинградская область","26373306","АО \"ГАТЧИНСКИЙ ККЗ\"","4719000303","470501001","Оказание услуг в сфере горячего водоснабжения","HOT_VS"]
["Ленинградская область","27630757","ООО «Промэнерго»","7839320364","783901001","Оказание услуг в сфере горячего водоснабжения","HOT_VS"]
["Ленинградская область","26639730","ОАО \"Всеволожские тепловые сети\"","4703096470","470301001","Оказание услуг в сфере горячего водоснабжения","HOT_VS"]
["Ленинградская область","26373290","ОАО \"УЖКХ\" (Тихвинского района)","4715014471","471501001","Оказание услуг в сфере горячего водоснабжения","HOT_VS"]
["Ленинградская область","26561655","ООО «ТСК»","4703125360","470301001","Оказание услуг в сфере горячего водоснабжения","HOT_VS"]
["Ленинградская область","26422494","ГУП \"Водоканал Санкт-Петербурга\"","7830000426","784201001","Оказание услуг в сфере горячего водоснабжения","HOT_VS"]
["Ленинградская область","30941480","Филиал ФГБУ \"ЦЖКУ\" Минобороны России по ЗВО","7729314745","784243001","Оказание услуг в сфере горячего водоснабжения","HOT_VS"]
["Ленинградская область","30955687","ПУ ФСБ России по г.Санкт-Петербургу и Ленинградской области","7842317080","784201001","Оказание услуг в сфере горячего водоснабжения","HOT_VS"]
["Ленинградская область","31209792","МУП \"Ефимовские тепловые сети\"","4715031357","471501001","Оказание услуг в сфере горячего водоснабжения","HOT_VS"]
["Ленинградская область","31430605","МУП \"Романовский водоканал\"","4703172650","470301001","Оказание услуг в сфере горячего водоснабжения","HOT_VS"]
["Ленинградская область","31343593","ООО \"НИЛА\"","4711004602","471101001","Оказание услуг в сфере горячего водоснабжения","HOT_VS"]
["Ленинградская область","26373268","ЗАО \"Сосновоагропромтехника\"","4712002559","471201001","Оказание услуг в сфере горячего водоснабжения","HOT_VS"]
["Ленинградская область","26524169","МУП \"Тепловые сети\" г. Гатчина","4705014698","470501001","Оказание услуг в сфере горячего водоснабжения","HOT_VS"]
["Ленинградская область","27266270","ООО \"Петербургтеплоэнерго\"","7838024362","783901001","Оказание услуг в сфере горячего водоснабжения","HOT_VS"]
["Ленинградская область","26648562","ООО \"Энерго-Ресурс\"","4703108005","470301001","Оказание услуг в сфере горячего водоснабжения","HOT_VS"]
["Ленинградская область","28979613","ООО \"ЭнергоИнвест\"","7841378040","780201001","Оказание услуг в сфере горячего водоснабжения","HOT_VS"]
["Ленинградская область","28136066","НЛРВПиС","7812024833","470602001","Поставка горячей воды","HOT_VS"]
["Ленинградская область","28272648","ООО \"Тепловые Системы\"","7810450755","781001001","Оказание услуг в сфере горячего водоснабжения","HOT_VS"]
["Ленинградская область","28261957","АО \"Усть-Лужский Контейнерный Терминал\"","4707013562","470707001","Оказание услуг в сфере горячего водоснабжения","HOT_VS"]
["Ленинградская область","26640553","ООО \"Аква Норд-Вест\"","7801432887","780101001","Оказание услуг в сфере горячего водоснабжения","HOT_VS"]
["Ленинградская область","26373257","МУП \"НазияКомСервис\"","4706027280","470601001","Оказание услуг в сфере горячего водоснабжения","HOT_VS"]
["Ленинградская область","26322152","ПАО \"Россети Ленэнерго\"","7803002209","781001001","Оказание услуг в сфере горячего водоснабжения","HOT_VS"]
["Ленинградская область","28511826","ООО \"ТЕПЛОЭНЕРГО\"","7802853013","780101001","Оказание услуг в сфере горячего водоснабжения","HOT_VS"]
["Ленинградская область","26640635","ООО \"СМЭУ Заневка\"","4703116542","470301001","Оказание услуг в сфере горячего водоснабжения","HOT_VS"]
["Ленинградская область","26561751","МП \"Агалатово-Сервис\"","4703087267","470301001","Оказание услуг в сфере горячего водоснабжения","HOT_VS"]
["Ленинградская область","27850826","ООО \"Лужское тепло\"","4710032029","471001001","Оказание услуг в сфере горячего водоснабжения","HOT_VS"]
["Ленинградская область","26640411","ОАО \"Тепловые сети\" филиал  \"Волосовские коммунальные системы\"","4716024190","470543002","Оказание услуг в сфере горячего водоснабжения","HOT_VS"]
["Ленинградская область","28829716","ООО \"ОблСервис\"","4712024087","471201001","Оказание услуг в сфере горячего водоснабжения","HOT_VS"]
["Ленинградская область","26467459","ООО \"Теплострой плюс\"","7842322869","784201001","Оказание услуг в сфере горячего водоснабжения","HOT_VS"]
["Ленинградская область","30344093","ООО \"Паритет\"","4712026060","471201001","Оказание услуг в сфере горячего водоснабжения","HOT_VS"]
["Ленинградская область","26773425","МУП УЖКХ МО ВИЛЛОЗСКОЕ СП","4720024228","472501001","Оказание услуг в сфере горячего водоснабжения","HOT_VS"]
["Ленинградская область","28155588","ООО \"Мир Техники\"","7810034240","782001001","Оказание услуг в сфере горячего водоснабжения","HOT_VS"]
["Ленинградская область","27883546","ООО \"ГТМ - теплосервис\"","7810496527","780501001","Оказание услуг в сфере горячего водоснабжения","HOT_VS"]
["Ленинградская область","31208153","АО \"ИЭК\"","4725005187","472501001","Оказание услуг в сфере горячего водоснабжения","HOT_VS"]
["Ленинградская область","31347301","МУП \"Теплосеть Мельниково\"","4712029279","471201001","Оказание услуг в сфере горячего водоснабжения","HOT_VS"]
["Ленинградская область","31451157","ООО «Новая Дубровка»","4703101112","470301001","Оказание услуг в сфере горячего водоснабжения","HOT_VS"]
["Ленинградская область","31343563","МАУ \"МУК\"","4703145254","470301001","Оказание услуг в сфере горячего водоснабжения","HOT_VS"]

{"sheet":"modfrmReestr","index":48,"n_rows":0,"n_cols":0,"rows_kept":0,"cut":false,"hidden":true,"merged":[]}

{"sheet":"modHyp","index":49,"n_rows":0,"n_cols":0,"rows_kept":0,"cut":false,"hidden":true,"merged":[]}

{"sheet":"modUpdTemplMain","index":50,"n_rows":0,"n_cols":0,"rows_kept":0,"cut":false,"hidden":true,"merged":[]}

{"sheet":"modfrmListObject","index":51,"n_rows":0,"n_cols":0,"rows_kept":0,"cut":false,"hidden":true,"merged":[]}

{"sheet":"modThisWorkbook","index":52,"n_rows":0,"n_cols":0,"rows_kept":0,"cut":false,"hidden":true,"merged":[]}

{"sheet":"modList00","index":53,"n_rows":0,"n_cols":0,"rows_kept":0,"cut":false,"hidden":true,"merged":[]}

{"sheet":"modList02","index":54,"n_rows":0,"n_cols":0,"rows_kept":0,"cut":false,"hidden":true,"merged":[]}

{"sheet":"modList04","index":55,"n_rows":0,"n_cols":0,"rows_kept":0,"cut":false,"hidden":true,"merged":[]}

{"sheet":"modList07","index":56,"n_rows":0,"n_cols":0,"rows_kept":0,"cut":false,"hidden":true,"merged":[]}

{"sheet":"modList09","index":57,"n_rows":0,"n_cols":0,"rows_kept":0,"cut":false,"hidden":true,"merged":[]}

{"sheet":"modList10","index":58,"n_rows":0,"n_cols":0,"rows_kept":0,"cut":false,"hidden":true,"merged":[]}

{"sheet":"modList13","index":59,"n_rows":0,"n_cols":0,"rows_kept":0,"cut":false,"hidden":true,"merged":[]}

{"sheet":"modList15","index":60,"n_rows":0,"n_cols":0,"rows_kept":0,"cut":false,"hidden":true,"merged":[]}

{"sheet":"modList17","index":61,"n_rows":0,"n_cols":0,"rows_kept":0,"cut":false,"hidden":true,"merged":[]}

{"sheet":"modList16","index":62,"n_rows":0,"n_cols":0,"rows_kept":0,"cut":false,"hidden":true,"merged":[]}

{"sheet":"modList18","index":63,"n_rows":0,"n_cols":0,"rows_kept":0,"cut":false,"hidden":true,"merged":[]}

{"sheet":"modList19","index":64,"n_rows":0,"n_cols":0,"rows_kept":0,"cut":false,"hidden":true,"merged":[]}

{"sheet":"modList20","index":65,"n_rows":0,"n_cols":0,"rows_kept":0,"cut":false,"hidden":true,"merged":[]}

{"sheet":"modList21","index":66,"n_rows":0,"n_cols":0,"rows_kept":0,"cut":false,"hidden":true,"merged":[]}

{"sheet":"modList22","index":67,"n_rows":0,"n_cols":0,"rows_kept":0,"cut":false,"hidden":true,"merged":[]}

{"sheet":"modList23","index":68,"n_rows":0,"n_cols":0,"rows_kept":0,"cut":false,"hidden":true,"merged":[]}

{"sheet":"modList24","index":69,"n_rows":0,"n_cols":0,"rows_kept":0,"cut":false,"hidden":true,"merged":[]}

{"sheet":"modList05","index":70,"n_rows":0,"n_cols":0,"rows_kept":0,"cut":false,"hidden":true,"merged":[]}

{"sheet":"modList06","index":71,"n_rows":0,"n_cols":0,"rows_kept":0,"cut":false,"hidden":true,"merged":[]}

{"sheet":"modList12","index":72,"n_rows":0,"n_cols":0,"rows_kept":0,"cut":false,"hidden":true,"merged":[]}

{"sheet":"modCommonProc","index":73,"n_rows":0,"n_cols":0,"rows_kept":0,"cut":false,"hidden":true,"merged":[]}